Workbook

Sheet Overview
C3: DCJS ARPA Equipment and Technology Grant - Overview
C6: Category | D6: Count | E6: Value
C7: Body Armor | D7: =SUMIF('2023_04_24 Item Data Export'!D:D, Table10[[#This Row],[Category]], '2023_04_24 Item Data Export'!G:G) -> 3096 | E7: =SUMIF('2023_04_24 Item Data Export'!D:D, Table10[[#This Row],[Category]], '2023_04_24 Item Data Export'!H:H) -> 3306283.47
C8: Communications Equipment | D8: =SUMIF('2023_04_24 Item Data Export'!D:D, Table10[[#This Row],[Category]], '2023_04_24 Item Data Export'!G:G) -> 1372 | E8: =SUMIF('2023_04_24 Item Data Export'!D:D, Table10[[#This Row],[Category]], '2023_04_24 Item Data Export'!H:H) -> 3256590.26
C9: Computers, TVs, Tablets & Electronics Accessories | D9: =SUMIF('2023_04_24 Item Data Export'!D:D, Table10[[#This Row],[Category]], '2023_04_24 Item Data Export'!G:G) -> 1340 | E9: =SUMIF('2023_04_24 Item Data Export'!D:D, Table10[[#This Row],[Category]], '2023_04_24 Item Data Export'!H:H) -> 3472741.14
C10: Drones | D10: =SUMIF('2023_04_24 Item Data Export'!D:D, Table10[[#This Row],[Category]], '2023_04_24 Item Data Export'!G:G) -> 52 | E10: =SUMIF('2023_04_24 Item Data Export'!D:D, Table10[[#This Row],[Category]], '2023_04_24 Item Data Export'!H:H) -> 761366.89
C11: Drone Accessories | D11: =SUMIF('2023_04_24 Item Data Export'!D:D, Table10[[#This Row],[Category]], '2023_04_24 Item Data Export'!G:G) -> 45 | E11: =SUMIF('2023_04_24 Item Data Export'!D:D, Table10[[#This Row],[Category]], '2023_04_24 Item Data Export'!H:H) -> 45815.07
C12: Evidence Collection / Detective | D12: =SUMIF('2023_04_24 Item Data Export'!D:D, Table10[[#This Row],[Category]], '2023_04_24 Item Data Export'!G:G) -> 809 | E12: =SUMIF('2023_04_24 Item Data Export'!D:D, Table10[[#This Row],[Category]], '2023_04_24 Item Data Export'!H:H) -> 4487909.7
C13: Firearms | D13: =SUMIF('2023_04_24 Item Data Export'!D:D, Table10[[#This Row],[Category]], '2023_04_24 Item Data Export'!G:G) -> 1456 | E13: =SUMIF('2023_04_24 Item Data Export'!D:D, Table10[[#This Row],[Category]], '2023_04_24 Item Data Export'!H:H) -> 1345378
C14: Firearm Accessories | D14: =SUMIF('2023_04_24 Item Data Export'!D:D, Table10[[#This Row],[Category]], '2023_04_24 Item Data Export'!G:G) -> 5349 | E14: =SUMIF('2023_04_24 Item Data Export'!D:D, Table10[[#This Row],[Category]], '2023_04_24 Item Data Export'!H:H) -> 1684211.16
C15: K9s | D15: =SUMIF('2023_04_24 Item Data Export'!D:D, Table10[[#This Row],[Category]], '2023_04_24 Item Data Export'!G:G) -> 10 | E15: =SUMIF('2023_04_24 Item Data Export'!D:D, Table10[[#This Row],[Category]], '2023_04_24 Item Data Export'!H:H) -> 148234.42
C16: K9 Accessories | D16: =SUMIF('2023_04_24 Item Data Export'!D:D, Table10[[#This Row],[Category]], '2023_04_24 Item Data Export'!G:G) -> 20 | E16: =SUMIF('2023_04_24 Item Data Export'!D:D, Table10[[#This Row],[Category]], '2023_04_24 Item Data Export'!H:H) -> 97700.31
C17: Surveillance | D17: =SUMIF('2023_04_24 Item Data Export'!D:D, Table10[[#This Row],[Category]], '2023_04_24 Item Data Export'!G:G) -> 2149 | E17: =SUMIF('2023_04_24 Item Data Export'!D:D, Table10[[#This Row],[Category]], '2023_04_24 Item Data Export'!H:H) -> 8149173.18
C18: Tasers & Taser Accessories | D18: =SUMIF('2023_04_24 Item Data Export'!D:D, Table10[[#This Row],[Category]], '2023_04_24 Item Data Export'!G:G) -> 1440 | E18: =SUMIF('2023_04_24 Item Data Export'!D:D, Table10[[#This Row],[Category]], '2023_04_24 Item Data Export'!H:H) -> 1689300.45
C19: Vehicles | D19: =SUMIF('2023_04_24 Item Data Export'!D:D, Table10[[#This Row],[Category]], '2023_04_24 Item Data Export'!G:G) -> 539 | E19: =SUMIF('2023_04_24 Item Data Export'!D:D, Table10[[#This Row],[Category]], '2023_04_24 Item Data Export'!H:H) -> 20669139.62
C20: Vehicle Accessories | D20: =SUMIF('2023_04_24 Item Data Export'!D:D, Table10[[#This Row],[Category]], '2023_04_24 Item Data Export'!G:G) -> 2386 | E20: =SUMIF('2023_04_24 Item Data Export'!D:D, Table10[[#This Row],[Category]], '2023_04_24 Item Data Export'!H:H) -> 4431684.58
C21: Emergency Equipment | D21: =SUMIF('2023_04_24 Item Data Export'!D:D, Table10[[#This Row],[Category]], '2023_04_24 Item Data Export'!G:G) -> 1713 | E21: =SUMIF('2023_04_24 Item Data Export'!D:D, Table10[[#This Row],[Category]], '2023_04_24 Item Data Export'!H:H) -> 995777.5
C22: Other | D22: =SUMIF('2023_04_24 Item Data Export'!D:D, Table10[[#This Row],[Category]], '2023_04_24 Item Data Export'!G:G) -> 4066 | E22: =SUMIF('2023_04_24 Item Data Export'!D:D, Table10[[#This Row],[Category]], '2023_04_24 Item Data Export'!H:H) -> 5576130.93
D24: Summary | E24: Value
D25: Total Requested in Grant Applications | E25: =SUM(Table10[Value]) -> 60117436.68
D26: Decision Matrix Total Allocation | E26: 57678500
D27: Difference | E27: =E25-E26 -> 2438936.68

Sheet Item Category Review
C3: DCJS ARPA Equipment and Technology Grant - Item Category Review
D7: Category | E7: Total Items | F7: Total Cost | G7: Average Cost
D8: Body Armor | E8: =SUMIF('2023_04_24 Item Data Export'!D:D, D8, '2023_04_24 Item Data Export'!G:G) -> 3096 | F8: =SUMIF('2023_04_24 Item Data Export'!D:D, 'Item Category Review'!$D$8, '2023_04_24 Item Data Export'!H:H) -> 3306283.47 | G8: =AVERAGEIF('2023_04_24 Item Data Export'!D:D, 'Item Category Review'!$D$8, '2023_04_24 Item Data Export'!F:F) -> 2353.128897
C10: ID | D10: Organizaiton | E10: Category | F10: Item | G10: Cost Per Item/Monthly Rate | H10: Quantity | I10: Total Cost
C11: 510072 | D11: Petersburg | E11: Computers, TVs, Tablets & Electronics Accessories | F11: Laptops | G11: 6775 | H11: 92 | I11: 623300
C12: 510074 | D12: Petersburg | E12: Computers, TVs, Tablets & Electronics Accessories | F12: Laptops | G12: 6775 | H12: 92 | I12: 623300
C13: 510075 | D13: Petersburg | E13: Computers, TVs, Tablets & Electronics Accessories | F13: Laptops | G13: 6775 | H13: 92 | I13: 623300
C14: 509273 | D14: Fairfax | E14: Other | F14: FX Robot | G14: 549212 | H14: 1 | I14: 549212
C15: 509273 | D15: Fairfax | E15: Other | F15: Titus Robot | G15: 450788 | H15: 1 | I15: 450788
C16: 509078 | D16: Smyth | E16: Vehicles | F16: Patrol Vehicles | G16: 40000 | H16: 11 | I16: 440000
C17: 509353 | D17: Virginia Beach | E17: Vehicles | F17: Marine Patrol Boat | G17: 403230 | H17: 1 | I17: 403230
C18: 509314 | D18: Dinwiddie | E18: Vehicles | F18: Mobile Data Terminals for Patrol Vehicles | G18: 6961.58 | H18: 50 | I18: 348079
C19: 509983 | D19: Lee | E19: Vehicles | F19: 2023 Ford SUV 3.3L V6 | G19: 58000 | H19: 6 | I19: 348000
C20: 509352 | D20: Dickenson | E20: Vehicles | F20: Fully Equipped Patrol Vehicles | G20: 69000 | H20: 5 | I20: 345000
C21: 510513 | D21: Alexandria | E21: Surveillance | F21: ShotSpotter | G21: 26500 | H21: 12 | I21: 318000
C22: 510029 | D22: Bristol | E22: Vehicles | F22: Vehicle | G22: 34962.6 | H22: 9 | I22: 314663.4
C23: 510251 | D23: Winchester | E23: Surveillance | F23: Automatic License Plate Recognition System | G23: 8500 | H23: 36 | I23: 306000
C24: 509485 | D24: Southwest Virginia Regional Jail Authority | E24: Surveillance | F24: Installation of security cameras - Installation by Vendor (Esitech) $302,500 from Operating Funds | G24: 5500 | H24: 55 | I24: 302500
C25: 509290 | D25: Hopewell | E25: Tasers & Taser Accessories | F25: Axon Taser 7 | G25: 56000 | H25: 5 | I25: 280000
C26: 509095 | D26: Radford | E26: Vehicles | F26: Ford Police Interceptor Utility AWD | G26: 43763.8 | H26: 6 | I26: 262582.8
C27: 509224 | D27: Galax | E27: Vehicles | F27: Police Vehicles | G27: 43000 | H27: 6 | I27: 258000
C28: 509451 | D28: Prince William | E28: Other | F28: VirTra V-300 Simulation Training System | G28: 256148.67 | H28: 1 | I28: 256148.67
C29: 510510 | D29: Rockingham | E29: Vehicles | F29: Ford Explorer | G29: 50600 | H29: 5 | I29: 253000
C30: 509458 | D30: Montgomery | E30: Vehicles | F30: Patrol Response Vehicles-Road Ready Equipped | G30: 63000 | H30: 4 | I30: 252000
C31: 509292 | D31: Virginia CWealth Univ | E31: Other | F31: FUSE-E-1-1001 | G31: 10416.67 | H31: 24 | I31: 250000.08
C32: 510180 | D32: Henry | E32: Surveillance | F32: Flock Safety Camera System | G32: 3725 | H32: 60 | I32: 223500
C33: 509352 | D33: Dickenson | E33: Communications Equipment | F33: Radio System Upgrade | G33: 220735 | H33: 1 | I33: 220735
C34: 509481 | D34: Tazewell County | E34: Vehicles | F34: 2023 Police Interceptor Utility AWD | G34: 43365 | H34: 5 | I34: 216825
C35: 509485 | D35: Southwest Virginia Regional Jail Authority | E35: Vehicles | F35: 2023 Ford Transit 350 Cargo Van - $214,944 from Operating Funds | G35: 53736 | H35: 4 | I35: 214944
C36: 509284 | D36: Richlands | E36: Vehicles | F36: 2023 Tahoe PPV 4WD | G36: 53000 | H36: 4 | I36: 212000
C37: 509376 | D37: Page | E37: Vehicles | F37: Crime Prevention/ERT Vehicle - Durango | G37: 42000 | H37: 5 | I37: 210000
C38: 509833 | D38: Chesterfield | E38: Surveillance | F38: Fusus One - Enterprise Plus Upgrade | G38: 209165.08 | H38: 1 | I38: 209165.08
C39: 510281 | D39: Carroll | E39: Vehicles | F39: Chevrolet Tahoe | G39: 52235 | H39: 4 | I39: 208940
C40: 509474 | D40: Waynesboro | E40: Vehicles | F40: Police Patrol Vehicle | G40: 41709.9 | H40: 5 | I40: 208549.5
C41: 509431 | D41: Buena Vista | E41: Vehicles | F41: New Ford Utility SUV Police Package | G41: 51625 | H41: 4 | I41: 206500
C42: 509220 | D42: Pulaski County | E42: Vehicles | F42: Fully Equipped Patrol Vehicles | G42: 50000 | H42: 4 | I42: 200000
C43: 510290 | D43: Floyd | E43: Vehicles | F43: 2023 Dodge Durango Patrol Vehicle/Upfit | G43: 66600 | H43: 3 | I43: 199800
C44: 510174 | D44: Alleghany | E44: Vehicles | F44: 2022 Police Interceptor Utility AWD | G44: 39730.56 | H44: 5 | I44: 198652.8
C45: 509033 | D45: York | E45: Vehicles | F45: Ford Police Interceptor Utility Vehicle | G45: 47500 | H45: 4 | I45: 190000
C46: 509205 | D46: Harrisonburg | E46: Vehicles | F46: Police Vehicles | G46: 62795 | H46: 3 | I46: 188385
C47: 510122 | D47: Chase City | E47: Vehicles | F47: Police SUV | G47: 47000 | H47: 4 | I47: 188000
C48: 510186 | D48: Campbell | E48: Tasers & Taser Accessories | F48: Taser 7 | G48: 2539 | H48: 74 | I48: 187886
C49: 509521 | D49: Accomack | E49: Vehicles | F49: Unmarked Patrol Vehicles | G49: 45000 | H49: 4 | I49: 180000
C50: 509224 | D50: Galax | E50: Vehicles | F50: Leased Vehicles | G50: 44750 | H50: 4 | I50: 179000
C51: 509485 | D51: Southwest Virginia Regional Jail Authority | E51: Surveillance | F51: Axis Q6315-LE HDTV 1080p PTZ Camera w/Quick Zoom & Laser Focus - Grant Funds | G51: 3249 | H51: 55 | I51: 178695
C52: 509492 | D52: Prince Edward | E52: Vehicles | F52: Vehicles | G52: 43638.6 | H52: 4 | I52: 174554.4
C53: 509521 | D53: Accomack | E53: Evidence Collection / Detective | F53: IBIS Solutions (BrassTrax) | G53: 174000 | H53: 1 | I53: 174000
C54: 510232 | D54: Louisa County | E54: Vehicles | F54: Chevrolet PPV | G54: 43500 | H54: 4 | I54: 174000
C55: 510183 | D55: Suffolk | E55: Surveillance | F55: Real-time Crime Center Technology | G55: 172565 | H55: 1 | I55: 172565
C56: 509375 | D56: Brunswick | E56: Vehicles | F56: Ford Police Interceptor Utility AWD | G56: 43000 | H56: 4 | I56: 172000
C57: 509778 | D57: Scott | E57: Vehicle Accessories | F57: M500 In-Car Camera System (including warranty, training, installation, etc.) | G57: 11940.71 | H57: 14 | I57: 167169.94
C58: 509485 | D58: Southwest Virginia Regional Jail Authority | E58: Surveillance | F58: Axis TP3265-LE Indoor 2MP Dome w/IR & Deep Learning - Grant Funds | G58: 639 | H58: 260 | I58: 166140
C59: 510023 | D59: Tappahannock | E59: Vehicles | F59: Vehicle | G59: 55013 | H59: 3 | I59: 165039
C60: 509357 | D60: Hillsville | E60: Vehicles | F60: Patrol Vehicles | G60: 55000 | H60: 3 | I60: 165000
C61: 510448 | D61: Rappahannock Regional Jail | E61: Evidence Collection / Detective | F61: Body Scanner | G61: 162500 | H61: 1 | I61: 162500
C62: 510462 | D62: Southampton | E62: Communications Equipment | F62: Portable Radios | G62: 5400 | H62: 30 | I62: 162000
C63: 509957 | D63: Loudoun | E63: Surveillance | F63: Automatic License Plate Reader | G63: 16114.9 | H63: 10 | I63: 161149
C64: 509460 | D64: Altavista | E64: Vehicles | F64: 2023 Ford Police Interceptor Utility AWD (K8A) | G64: 39765.65 | H64: 4 | I64: 159062.6
C65: 509441 | D65: Staunton | E65: Vehicles | F65: Ford Police Interceptor SUV | G65: 39308 | H65: 4 | I65: 157232
C66: 510346 | D66: Spotsylvania | E66: Firearm Accessories | F66: Handgun Optics with Mount | G66: 552.42 | H66: 280 | I66: 154677.6
C67: 509054 | D67: Mecklenburg | E67: Surveillance | F67: EOTECH EOT-BINO-AI-B-C Binonv-C Binoculars | G67: 11739.2 | H67: 13 | I67: 152609.6
C68: 510147 | D68: Prince William | E68: Surveillance | F68: Cameras for PODS, Kitchen and Armory | G68: 16826.44 | H68: 9 | I68: 151437.96
C69: 510386 | D69: Washington | E69: Vehicles | F69: Vehicles - Dodge Chargers | G69: 37626 | H69: 4 | I69: 150504
C70: 509785 | D70: Exmore | E70: Surveillance | F70: Absolute Security Network Camera System | G70: 150000 | H70: 1 | I70: 150000
C71: 509492 | D71: Prince Edward | E71: Communications Equipment | F71: Repeaters | G71: 8331.73 | H71: 18 | I71: 149971.14
C72: 509774 | D72: Henrico | E72: Evidence Collection / Detective | F72: BrassTRAX | G72: 149860 | H72: 1 | I72: 149860
C73: 510026 | D73: Patrick | E73: Communications Equipment | F73: Apco Project 25 Simulcast System | G73: 148500 | H73: 1 | I73: 148500
C74: 509260 | D74: Amelia | E74: Vehicle Accessories | F74: MDT (In car computer) | G74: 6140 | H74: 24 | I74: 147360
C75: 509954 | D75: Lancaster | E75: Vehicle Accessories | F75: Motorola In-Car Video System & Video Manager El Cloud | G75: 10384.43 | H75: 14 | I75: 145382.02
C76: 509344 | D76: Hampton Roads Regional Jail | E76: Evidence Collection / Detective | F76: Tek84 Intercept Full Body X-Ray Scanner | G76: 144500 | H76: 1 | I76: 144500
C77: 509363 | D77: Middle River Regional Jail | E77: Evidence Collection / Detective | F77: Tek84 Intercept Body Scanner | G77: 144000 | H77: 1 | I77: 144000
C78: 509451 | D78: Prince William | E78: Communications Equipment | F78: Motorola Solutions APX6000BN Portable Radio | G78: 5417.6 | H78: 26 | I78: 140857.6
C79: 509930 | D79: Orange | E79: Vehicles | F79: Standard Law Enforcement Vehicles | G79: 70000 | H79: 2 | I79: 140000
C80: 510464 | D80: Manassas Park | E80: Vehicles | F80: Police Vehicle Interceptor | G80: 70000 | H80: 2 | I80: 140000
C81: 510365 | D81: Franklin | E81: Vehicles | F81: Marked patrol vehicles | G81: 46444.8 | H81: 3 | I81: 139334.4
C82: 509504 | D82: Bluefield | E82: Vehicles | F82: 2023 Ford Police Rated Responder F-150 4x4 W1P | G82: 46095 | H82: 3 | I82: 138285
C83: 510447 | D83: Caroline | E83: Vehicles | F83: Vehicles | G83: 68066 | H83: 2 | I83: 136132
C84: 509143 | D84: Lunenburg | E84: Vehicles | F84: 2023 Chevrolet Tahoe Police Vehicle | G84: 45080 | H84: 3 | I84: 135240
C85: 509085 | D85: Pennington Gap | E85: Vehicles | F85: PATROL VEHICLE | G85: 45000 | H85: 3 | I85: 135000
C86: 509491 | D86: Norton | E86: Vehicles | F86: Police Interceptor | G86: 67489.87 | H86: 2 | I86: 134979.74
C87: 509514 | D87: Shenandoah County | E87: Surveillance | F87: Tactical Binocular Night Vision Device 2200 | G87: 7443 | H87: 18 | I87: 133974
C88: 509518 | D88: Christiansburg | E88: Vehicles | F88: Fully Equipment Police Vehicles | G88: 65839.87 | H88: 2 | I88: 131679.74
C89: 509095 | D89: Radford | E89: Vehicle Accessories | F89: Equipment, Installation of Equipment, and Marking Vehicle Costs | G89: 21871.65 | H89: 6 | I89: 131229.9
C90: 510353 | D90: Old Dominion Univ | E90: Vehicles | F90: 2023 Ford Police Interceptor Utility with the 3.0L EcoBoost V6 engine | G90: 43033.12 | H90: 3 | I90: 129099.36
C91: 508975 | D91: Colonial Heights | E91: Vehicles | F91: F-150 Police Packaged Truck with Hard Bed Cover and Vault | G91: 64373 | H91: 2 | I91: 128746
C92: 509968 | D92: Bedford County | E92: Vehicles | F92: 2023 Dodge Durango Pursuit V^ AWD | G92: 42746 | H92: 3 | I92: 128238
C93: 509219 | D93: Luray | E93: Communications Equipment | F93: New P25 Compliant Radio System | G93: 128000 | H93: 1 | I93: 128000
C94: 509340 | D94: Hanover | E94: Other | F94: Virtual Reality Theatre and Related Components | G94: 128000 | H94: 1 | I94: 128000
C95: 510073 | D95: Giles | E95: Communications Equipment | F95: KA-SI-T2 Simulcast Option | G95: 5803 | H95: 22 | I95: 127666
C96: 509362 | D96: Richmond | E96: Vehicles | F96: Chevrolet Tahoe | G96: 42000 | H96: 3 | I96: 126000
C97: 510072 | D97: Petersburg | E97: Evidence Collection / Detective | F97: FUSUS Crime Center | G97: 125000 | H97: 1 | I97: 125000
C98: 510074 | D98: Petersburg | E98: Evidence Collection / Detective | F98: FUSUS Crime Center | G98: 125000 | H98: 1 | I98: 125000
C99: 510075 | D99: Petersburg | E99: Evidence Collection / Detective | F99: FUSUS Crime Center | G99: 125000 | H99: 1 | I99: 125000
C100: 509753 | D100: Appomattox County | E100: Vehicles | F100: Dodge Durango PPV AWD | G100: 41272.27 | H100: 3 | I100: 123816.81
C101: 509451 | D101: Prince William | E101: Communications Equipment | F101: Motorola Solutions APX6500BN Mobile Radio | G101: 6454.67 | H101: 19 | I101: 122638.73
C102: 508983 | D102: Fredericksburg | E102: Surveillance | F102: Mobile Surveillance Platform | G102: 40730 | H102: 3 | I102: 122190
C103: 508934 | D103: Crewe | E103: Vehicles | F103: 2023 Ford Police interceptors to replace 2011 dodge chargers | G103: 60000 | H103: 2 | I103: 120000
C104: 509335 | D104: Rockbridge | E104: Vehicles | F104: School Resource Officer Vehicles | G104: 40000 | H104: 3 | I104: 120000
C105: 509789 | D105: Charlottesville | E105: Evidence Collection / Detective | F105: Total Station System - Leica RTC360 or similar | G105: 120000 | H105: 1 | I105: 120000
C106: 509995 | D106: Northampton | E106: Vehicles | F106: 2023 Dodge Charger | G106: 40000 | H106: 3 | I106: 120000
C107: 510384 | D107: South Boston | E107: Vehicles | F107: Fully equipped Police Vehicle for Investigations Division | G107: 60000 | H107: 2 | I107: 120000
C108: 510346 | D108: Spotsylvania | E108: Firearm Accessories | F108: Rifle Optics with Mount | G108: 742.3 | H108: 160 | I108: 118768
C109: 509778 | D109: Scott | E109: Vehicles | F109: 2023 Ford Police Interceptor Utility AWD | G109: 39487.2 | H109: 3 | I109: 118461.6
C110: 509313 | D110: New River Valley Reg. Jail Auth. | E110: Evidence Collection / Detective | F110: Digital Cameras | G110: 6567 | H110: 18 | I110: 118206
C111: 509937 | D111: New River Valley Reg. Jail Auth. | E111: Evidence Collection / Detective | F111: Digital Cameras | G111: 6567 | H111: 18 | I111: 118206
C112: 510467 | D112: Westmoreland | E112: Vehicles | F112: 2023 Ford Interceptor Utility AWD | G112: 39252 | H112: 3 | I112: 117756
C113: 509021 | D113: Strasburg | E113: Vehicles | F113: 2023 Ford Police Interceptor Utility AWD | G113: 39251.8 | H113: 3 | I113: 117755.4
C114: 509353 | D114: Virginia Beach | E114: Evidence Collection / Detective | F114: ForenScope | G114: 117570 | H114: 1 | I114: 117570
C115: 510784 | D115: Colonial Beach | E115: Vehicles | F115: 2 Marked Police Vehicles | G115: 57660 | H115: 2 | I115: 115320
C116: 509114 | D116: Blackstone | E116: Vehicles | F116: Police Patrol Vehicle | G116: 38325 | H116: 3 | I116: 114975
C117: 510366 | D117: Onancock | E117: Surveillance | F117: DG Visual Security Camera System | G117: 3273.9 | H117: 35 | I117: 114586.5
C118: 509182 | D118: Essex | E118: Other | F118: Emergency Dispatch Console for Law Enforcement | G118: 114100 | H118: 1 | I118: 114100
C119: 510246 | D119: Pulaski | E119: Vehicles | F119: Dodge Durango Police Package | G119: 38000 | H119: 3 | I119: 114000
C120: 510363 | D120: City of Falls Church | E120: Tasers & Taser Accessories | F120: Taser 10 | G120: 3793 | H120: 30 | I120: 113790
C121: 509289 | D121: Augusta | E121: Surveillance | F121: US Night Vision PVS-14 | G121: 113380.2 | H121: 1 | I121: 113380.2
C122: 509057 | D122: Marion | E122: Vehicles | F122: 2023 Ford Utility Police Interceptor | G122: 37580.62 | H122: 3 | I122: 112741.86
C123: 510284 | D123: George Mason Univ | E123: Surveillance | F123: ALPR (hardware) | G123: 8027.4 | H123: 14 | I123: 112383.6
C124: 509996 | D124: Gretna | E124: Vehicles | F124: Ford Utility Vehicles | G124: 37454 | H124: 3 | I124: 112362
C125: 510251 | D125: Winchester | E125: Vehicles | F125: Standard LE Patrol Vehicle | G125: 56000 | H125: 2 | I125: 112000
C126: 509833 | D126: Chesterfield | E126: Firearms | F126: Rifle | G126: 4137 | H126: 27 | I126: 111699
C127: 510183 | D127: Suffolk | E127: Other | F127: Driving Add-on for MILO Simulator | G127: 110904 | H127: 1 | I127: 110904
C128: 510177 | D128: Northumberland | E128: Communications Equipment | F128: Portable Radios | G128: 3954 | H128: 28 | I128: 110712
C129: 509358 | D129: Prince George | E129: Evidence Collection / Detective | F129: Grayshift GrayKey | G129: 110435 | H129: 1 | I129: 110435
C130: 509123 | D130: Wise | E130: Vehicles | F130: Police Patrol Vehicle | G130: 55000 | H130: 2 | I130: 110000
C131: 509571 | D131: Pamunkey Regional Jail | E131: Vehicles | F131: 2024 Ford Transit 350,12-Pass Van | G131: 55000 | H131: 2 | I131: 110000
C132: 509721 | D132: Riverside Regional Jail | E132: Vehicles | F132: Vehicle - Van | G132: 55000 | H132: 2 | I132: 110000
C133: 509785 | D133: Exmore | E133: Vehicles | F133: Dodge Charger Patrol Vehicle | G133: 36512 | H133: 3 | I133: 109536
C134: 510183 | D134: Suffolk | E134: Evidence Collection / Detective | F134: IBIS Access/NIBIN | G134: 108625 | H134: 1 | I134: 108625
C135: 510794 | D135: Liberty University Police | E135: Vehicles | F135: Police vehicle | G135: 54000 | H135: 2 | I135: 108000
C136: 510054 | D136: Wise County | E136: Evidence Collection / Detective | F136: CELLBRITE | G136: 107169 | H136: 1 | I136: 107169
C137: 509958 | D137: Dumfries | E137: Surveillance | F137: Acoem ATD gunshot detection system | G137: 15250 | H137: 7 | I137: 106750
C138: 509491 | D138: Norton | E138: Tasers & Taser Accessories | F138: Tasers | G138: 4218.81 | H138: 25 | I138: 105470.25
C139: 510309 | D139: Woodstock | E139: Surveillance | F139: Flock Cameras | G139: 21000 | H139: 5 | I139: 105000
C140: 509833 | D140: Chesterfield | E140: Other | F140: Insight Public Sector - Cobwebs : Retroactive Request | G140: 104974.62 | H140: 1 | I140: 104974.62
C141: 509275 | D141: Grayson | E141: Other | F141: Dispatch Console | G141: 103965 | H141: 1 | I141: 103965
C142: 509494 | D142: Weber City | E142: Vehicles | F142: Vehicles | G142: 51000 | H142: 2 | I142: 102000
C143: 509610 | D143: Warsaw | E143: Vehicles | F143: Police SUV Vehicle | G143: 51000 | H143: 2 | I143: 102000
C144: 509093 | D144: Franklin County | E144: Vehicles | F144: Marine Vessel | G144: 100000 | H144: 1 | I144: 100000
C145: 509340 | D145: Hanover | E145: Surveillance | F145: Mobile Surveillance Unit | G145: 50000 | H145: 2 | I145: 100000
C146: 509485 | D146: Southwest Virginia Regional Jail Authority | E146: Vehicle Accessories | F146: Security package for 2023 Ford 350 Transit Van - $100,000 from Operating Funds | G146: 25000 | H146: 4 | I146: 100000
C147: 509598 | D147: Piedmont Regional Jail | E147: Vehicles | F147: Transportation Vans (total of 3) | G147: 99864.89 | H147: 1 | I147: 99864.89
C148: 509359 | D148: Charlotte | E148: Tasers & Taser Accessories | F148: TASER Bundle | G148: 4968.96 | H148: 20 | I148: 99379.2
C149: 509491 | D149: Norton | E149: Communications Equipment | F149: Mobile Data Terminals | G149: 4871.1 | H149: 20 | I149: 97422
C150: 508912 | D150: Western Virginia Reg Jail Authority | E150: Other | F150: Cisco Call Manager Servers | G150: 48593 | H150: 2 | I150: 97186
C151: 510073 | D151: Giles | E151: Other | F151: Installation of equipment | G151: 96500 | H151: 1 | I151: 96500
C152: 509724 | D152: South Hill | E152: Vehicles | F152: Patrol Vehicle | G152: 48000 | H152: 2 | I152: 96000
C153: 509481 | D153: Tazewell County | E153: Communications Equipment | F153: Complete Kenwwod Viking Radio Package System for Deputy and Vehicle | G153: 11989.85 | H153: 8 | I153: 95918.8
C154: 509093 | D154: Franklin County | E154: Firearms | F154: Glock 19 with sights/lights/holsters | G154: 851 | H154: 110 | I154: 93610
C155: 509431 | D155: Buena Vista | E155: Vehicles | F155: New Chevrolet Tahoe SSV | G155: 46000 | H155: 2 | I155: 92000
C156: 509606 | D156: Mt Jackson | E156: Vehicles | F156: 2023 Ford Interceptor Utility Vehicle | G156: 45643 | H156: 2 | I156: 91286
C157: 509485 | D157: Southwest Virginia Regional Jail Authority | E157: Computers, TVs, Tablets & Electronics Accessories | F157: NVT Phybridge NV-ECLK-PLS-1XEC-Link + Adaptor - Grant Funds | G157: 257 | H157: 354 | I157: 90978
C158: 509718 | D158: Northwestern Regional Adult Detention Center | E158: Body Armor | F158: Protective vests | G158: 1298.04 | H158: 70 | I158: 90863
C159: 510054 | D159: Wise County | E159: Body Armor | F159: BALLISTIC SHIELDS | G159: 5295 | H159: 17 | I159: 90015
C160: 509774 | D160: Henrico | E160: Evidence Collection / Detective | F160: FLIR PTZ camera | G160: 90000 | H160: 1 | I160: 90000
C161: 510291 | D161: Elkton | E161: Vehicles | F161: 2023 Dodge Durango Police Pkg. V6 Sports Utility Vehicles | G161: 45000 | H161: 2 | I161: 90000
C162: 510385 | D162: Kilmarnock | E162: Vehicles | F162: Standard Police Vehicle | G162: 45000 | H162: 2 | I162: 90000
C163: 510147 | D163: Prince William | E163: Evidence Collection / Detective | F163: Portable Hand-Held X-Ray Scanner | G163: 90000 | H163: 1 | I163: 90000
C164: 510797 | D164: Western Tidewater Regional Jail | E164: Vehicles | F164: Vehicle | G164: 45000 | H164: 2 | I164: 90000
C165: 509894 | D165: Covington | E165: Drones | F165: Lemur 2 Drone | G165: 89895 | H165: 1 | I165: 89895
C166: 510133 | D166: Virginia Peninsula Regional Jail | E166: Vehicles | F166: Prisoner Transportation Vans | G166: 44615 | H166: 2 | I166: 89230
C167: 509552 | D167: Lebanon | E167: Vehicles | F167: Police Vehicle | G167: 43659 | H167: 2 | I167: 87318
C168: 509485 | D168: Southwest Virginia Regional Jail Authority | E168: Computers, TVs, Tablets & Electronics Accessories | F168: NVT Phybridge CLEER24-10G Gigabit 24-Port PoE+Switch-$28,128 from Grant/$59,031 from Operating Funds | G168: 5127 | H168: 17 | I168: 87159
C169: 510064 | D169: Front Royal | E169: Surveillance | F169: Fixed Automated License Plate Reader w/ 4 year subscription | G169: 12350 | H169: 7 | I169: 86450
C170: 509289 | D170: Augusta | E170: Firearms | F170: Service Pistol upgrade | G170: 86410 | H170: 1 | I170: 86410
C171: 509353 | D171: Virginia Beach | E171: Other | F171: Water Tank | G171: 86060 | H171: 1 | I171: 86060
C172: 509275 | D172: Grayson | E172: Vehicles | F172: Vehicles | G172: 42992 | H172: 2 | I172: 85984
C173: 509609 | D173: Cumberland | E173: Vehicle Accessories | F173: In car video camera system | G173: 5728 | H173: 15 | I173: 85920
C174: 510180 | D174: Henry | E174: Body Armor | F174: Paraclete Level III Shields | G174: 9506.88 | H174: 9 | I174: 85561.92
C175: 509779 | D175: Middle Peninsula Regional Security Cntr | E175: Surveillance | F175: Multi-Sensor Starlight Camera | G175: 3123 | H175: 27 | I175: 84321
C176: 510017 | D176: Bland | E176: Vehicles | F176: 2023 Dodge Durango Pursuit V8 AWD | G176: 42123 | H176: 2 | I176: 84246
C177: 509205 | D177: Harrisonburg | E177: Surveillance | F177: License Plate Recognition Cameras | G177: 6000 | H177: 14 | I177: 84000
C178: 509750 | D178: Highland | E178: Vehicles | F178: 2 Chevrolet Tahoes | G178: 42000 | H178: 2 | I178: 84000
C179: 509478 | D179: Middlesex | E179: Vehicles | F179: 2023 Dodge Durango-marked | G179: 42000 | H179: 2 | I179: 84000
C180: 509755 | D180: Bath | E180: Vehicles | F180: 2 Cevy Tahoe | G180: 84000 | H180: 1 | I180: 84000
C181: 510177 | D181: Northumberland | E181: Vehicles | F181: Patrol Vehicle | G181: 42000 | H181: 2 | I181: 84000
C182: 510592 | D182: Lawrenceville | E182: Vehicles | F182: 2022 Chevrolet Tahoe PPV | G182: 41909 | H182: 2 | I182: 83818
C183: 510073 | D183: Giles | E183: Communications Equipment | F183: KA-500 Kairos Repeaters | G183: 3800 | H183: 22 | I183: 83600
C184: 509450 | D184: Lexington | E184: Vehicle Accessories | F184: Mobile Command Center - Vehicle | G184: 41767.5 | H184: 2 | I184: 83535
C185: 510285 | D185: Ashland | E185: Surveillance | F185: Pole Camera with Analytic Software | G185: 82775 | H185: 1 | I185: 82775
C186: 509474 | D186: Waynesboro | E186: Vehicles | F186: Police Vehicle Equipment | G186: 16471.75 | H186: 5 | I186: 82358.75
C187: 509348 | D187: Westmoreland | E187: Surveillance | F187: Avigilon Camera | G187: 11714.29 | H187: 7 | I187: 82000
C188: 509376 | D188: Page | E188: Vehicles | F188: Crime Prevention/Patrol & Criminal Investigations Vehicle - Pick-Up Truck/SUV | G188: 41000 | H188: 2 | I188: 82000
C189: 510810 | D189: Westmoreland | E189: Surveillance | F189: Avigilon Camera | G189: 11714.29 | H189: 7 | I189: 82000
C190: 510110 | D190: Buchanan County | E190: Body Armor | F190: Tac - Helmets with Radio communication STARS Compatible | G190: 81897 | H190: 1 | I190: 81897
C191: 509143 | D191: Lunenburg | E191: Vehicle Accessories | F191: Eyewitness In-Car Camera System for Fleet | G191: 80706 | H191: 1 | I191: 80706
C192: 509453 | D192: Clifton Forge | E192: Vehicle Accessories | F192: In Car Camera System | G192: 11450 | H192: 7 | I192: 80150
C193: 509312 | D193: Wytheville | E193: Vehicles | F193: Standard Law Enforcement Vehicle | G193: 40000 | H193: 2 | I193: 80000
C194: 510147 | D194: Prince William | E194: Surveillance | F194: Package Scanner for Commissary and Agency Packages | G194: 80000 | H194: 1 | I194: 80000
C195: 509820 | D195: Nelson | E195: Firearms | F195: Patrol rifle with peripherals | G195: 2665 | H195: 30 | I195: 79950
C196: 509490 | D196: Russell | E196: Vehicles | F196: 2023 Ford Police Interceptor Utility AWD | G196: 39661 | H196: 2 | I196: 79322
C197: 510287 | D197: Cedar Bluff | E197: Vehicles | F197: 2023 Police Rated Ford Explorer | G197: 39543.6 | H197: 2 | I197: 79087.2
C198: 509084 | D198: King & Queen | E198: Tasers & Taser Accessories | F198: Taser 7 Certification Bundle | G198: 3163 | H198: 25 | I198: 79075
C199: 510064 | D199: Front Royal | E199: Vehicles | F199: Mini-Van | G199: 39275 | H199: 2 | I199: 78550
C200: 509957 | D200: Loudoun | E200: Evidence Collection / Detective | F200: FARO Focus Premium | G200: 78534.52 | H200: 1 | I200: 78534.52
C201: 509359 | D201: Charlotte | E201: Vehicles | F201: Patrol Vehicles | G201: 39134.3 | H201: 2 | I201: 78268.6
C202: 509609 | D202: Cumberland | E202: Vehicles | F202: Ford Police Interceptor Utility Patrol Vehicle | G202: 39045 | H202: 2 | I202: 78090
C203: 510285 | D203: Ashland | E203: Vehicles | F203: Marked Police Vehicle | G203: 39000 | H203: 2 | I203: 78000
C204: 509957 | D204: Loudoun | E204: Evidence Collection / Detective | F204: FSIS II Color Lab System | G204: 77408.87 | H204: 1 | I204: 77408.87
C205: 508983 | D205: Fredericksburg | E205: Evidence Collection / Detective | F205: Laser Scanner | G205: 76914 | H205: 1 | I205: 76914
C206: 510029 | D206: Bristol | E206: Vehicle Accessories | F206: Emergency Lighting, console, protective cage | G206: 9589.99 | H206: 8 | I206: 76719.92
... 2846 more rows

Sheet Detailed Application Review
C3: DCJS ARPA Equipment and Technology Grant - Detailed Application Review
F4: ID | G4: Primary Contact | H4: Decision Matrix Allocaiton
C5: Agency Name | D5: Albemarle - Charlottesville Regional Jail | F5: =VLOOKUP($D$5,Table2[],3,FALSE) -> 509813 | G5: =VLOOKUP(F5, '2023_04_24 Item Data Export'!A:B, 2, FALSE) -> anavelyn wrigley | H5: =VLOOKUP($D$5,Table2[],17,FALSE) -> 118000
C7: ID | D7: Category | E7: Item | F7: Cost Per Item/Monthly Rate | G7: Quantity | H7: Total Cost
C8: 510072 | D8: Computers, TVs, Tablets & Electronics Accessories | E8: Laptops | F8: 6775 | G8: 92 | H8: 623300
C9: 510074 | D9: Computers, TVs, Tablets & Electronics Accessories | E9: Laptops | F9: 6775 | G9: 92 | H9: 623300
C10: 510075 | D10: Computers, TVs, Tablets & Electronics Accessories | E10: Laptops | F10: 6775 | G10: 92 | H10: 623300
C11: 509273 | D11: Other | E11: FX Robot | F11: 549212 | G11: 1 | H11: 549212
C12: 509273 | D12: Other | E12: Titus Robot | F12: 450788 | G12: 1 | H12: 450788
C13: 509078 | D13: Vehicles | E13: Patrol Vehicles | F13: 40000 | G13: 11 | H13: 440000
C14: 509353 | D14: Vehicles | E14: Marine Patrol Boat | F14: 403230 | G14: 1 | H14: 403230
C15: 509314 | D15: Vehicles | E15: Mobile Data Terminals for Patrol Vehicles | F15: 6961.58 | G15: 50 | H15: 348079
C16: 509983 | D16: Vehicles | E16: 2023 Ford SUV 3.3L V6 | F16: 58000 | G16: 6 | H16: 348000
C17: 509352 | D17: Vehicles | E17: Fully Equipped Patrol Vehicles | F17: 69000 | G17: 5 | H17: 345000
C18: 510513 | D18: Surveillance | E18: ShotSpotter | F18: 26500 | G18: 12 | H18: 318000
C19: 510029 | D19: Vehicles | E19: Vehicle | F19: 34962.6 | G19: 9 | H19: 314663.4
C20: 510251 | D20: Surveillance | E20: Automatic License Plate Recognition System | F20: 8500 | G20: 36 | H20: 306000
C21: 509485 | D21: Surveillance | E21: Installation of security cameras - Installation by Vendor (Esitech) $302,500 from Operating Funds | F21: 5500 | G21: 55 | H21: 302500
C22: 509290 | D22: Tasers & Taser Accessories | E22: Axon Taser 7 | F22: 56000 | G22: 5 | H22: 280000
C23: 509095 | D23: Vehicles | E23: Ford Police Interceptor Utility AWD | F23: 43763.8 | G23: 6 | H23: 262582.8
C24: 509224 | D24: Vehicles | E24: Police Vehicles | F24: 43000 | G24: 6 | H24: 258000
C25: 509451 | D25: Other | E25: VirTra V-300 Simulation Training System | F25: 256148.67 | G25: 1 | H25: 256148.67
C26: 510510 | D26: Vehicles | E26: Ford Explorer | F26: 50600 | G26: 5 | H26: 253000
C27: 509458 | D27: Vehicles | E27: Patrol Response Vehicles-Road Ready Equipped | F27: 63000 | G27: 4 | H27: 252000
C28: 509292 | D28: Other | E28: FUSE-E-1-1001 | F28: 10416.67 | G28: 24 | H28: 250000.08
C29: 510180 | D29: Surveillance | E29: Flock Safety Camera System | F29: 3725 | G29: 60 | H29: 223500
C30: 509352 | D30: Communications Equipment | E30: Radio System Upgrade | F30: 220735 | G30: 1 | H30: 220735
C31: 509481 | D31: Vehicles | E31: 2023 Police Interceptor Utility AWD | F31: 43365 | G31: 5 | H31: 216825
C32: 509485 | D32: Vehicles | E32: 2023 Ford Transit 350 Cargo Van - $214,944 from Operating Funds | F32: 53736 | G32: 4 | H32: 214944
C33: 509284 | D33: Vehicles | E33: 2023 Tahoe PPV 4WD | F33: 53000 | G33: 4 | H33: 212000
C34: 509376 | D34: Vehicles | E34: Crime Prevention/ERT Vehicle - Durango | F34: 42000 | G34: 5 | H34: 210000
C35: 509833 | D35: Surveillance | E35: Fusus One - Enterprise Plus Upgrade | F35: 209165.08 | G35: 1 | H35: 209165.08
C36: 510281 | D36: Vehicles | E36: Chevrolet Tahoe | F36: 52235 | G36: 4 | H36: 208940
C37: 509474 | D37: Vehicles | E37: Police Patrol Vehicle | F37: 41709.9 | G37: 5 | H37: 208549.5
C38: 509431 | D38: Vehicles | E38: New Ford Utility SUV Police Package | F38: 51625 | G38: 4 | H38: 206500
C39: 509220 | D39: Vehicles | E39: Fully Equipped Patrol Vehicles | F39: 50000 | G39: 4 | H39: 200000
C40: 510290 | D40: Vehicles | E40: 2023 Dodge Durango Patrol Vehicle/Upfit | F40: 66600 | G40: 3 | H40: 199800
C41: 510174 | D41: Vehicles | E41: 2022 Police Interceptor Utility AWD | F41: 39730.56 | G41: 5 | H41: 198652.8
C42: 509033 | D42: Vehicles | E42: Ford Police Interceptor Utility Vehicle | F42: 47500 | G42: 4 | H42: 190000
C43: 509205 | D43: Vehicles | E43: Police Vehicles | F43: 62795 | G43: 3 | H43: 188385
C44: 510122 | D44: Vehicles | E44: Police SUV | F44: 47000 | G44: 4 | H44: 188000
C45: 510186 | D45: Tasers & Taser Accessories | E45: Taser 7 | F45: 2539 | G45: 74 | H45: 187886
C46: 509521 | D46: Vehicles | E46: Unmarked Patrol Vehicles | F46: 45000 | G46: 4 | H46: 180000
C47: 509224 | D47: Vehicles | E47: Leased Vehicles | F47: 44750 | G47: 4 | H47: 179000
C48: 509485 | D48: Surveillance | E48: Axis Q6315-LE HDTV 1080p PTZ Camera w/Quick Zoom & Laser Focus - Grant Funds | F48: 3249 | G48: 55 | H48: 178695
C49: 509492 | D49: Vehicles | E49: Vehicles | F49: 43638.6 | G49: 4 | H49: 174554.4
C50: 509521 | D50: Evidence Collection / Detective | E50: IBIS Solutions (BrassTrax) | F50: 174000 | G50: 1 | H50: 174000
C51: 510232 | D51: Vehicles | E51: Chevrolet PPV | F51: 43500 | G51: 4 | H51: 174000
C52: 510183 | D52: Surveillance | E52: Real-time Crime Center Technology | F52: 172565 | G52: 1 | H52: 172565
C53: 509375 | D53: Vehicles | E53: Ford Police Interceptor Utility AWD | F53: 43000 | G53: 4 | H53: 172000
C54: 509778 | D54: Vehicle Accessories | E54: M500 In-Car Camera System (including warranty, training, installation, etc.) | F54: 11940.71 | G54: 14 | H54: 167169.94
C55: 509485 | D55: Surveillance | E55: Axis TP3265-LE Indoor 2MP Dome w/IR & Deep Learning - Grant Funds | F55: 639 | G55: 260 | H55: 166140
C56: 510023 | D56: Vehicles | E56: Vehicle | F56: 55013 | G56: 3 | H56: 165039
C57: 509357 | D57: Vehicles | E57: Patrol Vehicles | F57: 55000 | G57: 3 | H57: 165000
C58: 510448 | D58: Evidence Collection / Detective | E58: Body Scanner | F58: 162500 | G58: 1 | H58: 162500
C59: 510462 | D59: Communications Equipment | E59: Portable Radios | F59: 5400 | G59: 30 | H59: 162000
C60: 509957 | D60: Surveillance | E60: Automatic License Plate Reader | F60: 16114.9 | G60: 10 | H60: 161149
C61: 509460 | D61: Vehicles | E61: 2023 Ford Police Interceptor Utility AWD (K8A) | F61: 39765.65 | G61: 4 | H61: 159062.6
C62: 509441 | D62: Vehicles | E62: Ford Police Interceptor SUV | F62: 39308 | G62: 4 | H62: 157232
C63: 510346 | D63: Firearm Accessories | E63: Handgun Optics with Mount | F63: 552.42 | G63: 280 | H63: 154677.6
C64: 509054 | D64: Surveillance | E64: EOTECH EOT-BINO-AI-B-C Binonv-C Binoculars | F64: 11739.2 | G64: 13 | H64: 152609.6
C65: 510147 | D65: Surveillance | E65: Cameras for PODS, Kitchen and Armory | F65: 16826.44 | G65: 9 | H65: 151437.96
C66: 510386 | D66: Vehicles | E66: Vehicles - Dodge Chargers | F66: 37626 | G66: 4 | H66: 150504
C67: 509785 | D67: Surveillance | E67: Absolute Security Network Camera System | F67: 150000 | G67: 1 | H67: 150000
C68: 509492 | D68: Communications Equipment | E68: Repeaters | F68: 8331.73 | G68: 18 | H68: 149971.14
C69: 509774 | D69: Evidence Collection / Detective | E69: BrassTRAX | F69: 149860 | G69: 1 | H69: 149860
C70: 510026 | D70: Communications Equipment | E70: Apco Project 25 Simulcast System | F70: 148500 | G70: 1 | H70: 148500
C71: 509260 | D71: Vehicle Accessories | E71: MDT (In car computer) | F71: 6140 | G71: 24 | H71: 147360
C72: 509954 | D72: Vehicle Accessories | E72: Motorola In-Car Video System & Video Manager El Cloud | F72: 10384.43 | G72: 14 | H72: 145382.02
C73: 509344 | D73: Evidence Collection / Detective | E73: Tek84 Intercept Full Body X-Ray Scanner | F73: 144500 | G73: 1 | H73: 144500
C74: 509363 | D74: Evidence Collection / Detective | E74: Tek84 Intercept Body Scanner | F74: 144000 | G74: 1 | H74: 144000
C75: 509451 | D75: Communications Equipment | E75: Motorola Solutions APX6000BN Portable Radio | F75: 5417.6 | G75: 26 | H75: 140857.6
C76: 509930 | D76: Vehicles | E76: Standard Law Enforcement Vehicles | F76: 70000 | G76: 2 | H76: 140000
C77: 510464 | D77: Vehicles | E77: Police Vehicle Interceptor | F77: 70000 | G77: 2 | H77: 140000
C78: 510365 | D78: Vehicles | E78: Marked patrol vehicles | F78: 46444.8 | G78: 3 | H78: 139334.4
C79: 509504 | D79: Vehicles | E79: 2023 Ford Police Rated Responder F-150 4x4 W1P | F79: 46095 | G79: 3 | H79: 138285
C80: 510447 | D80: Vehicles | E80: Vehicles | F80: 68066 | G80: 2 | H80: 136132
C81: 509143 | D81: Vehicles | E81: 2023 Chevrolet Tahoe Police Vehicle | F81: 45080 | G81: 3 | H81: 135240
C82: 509085 | D82: Vehicles | E82: PATROL VEHICLE | F82: 45000 | G82: 3 | H82: 135000
C83: 509491 | D83: Vehicles | E83: Police Interceptor | F83: 67489.87 | G83: 2 | H83: 134979.74
C84: 509514 | D84: Surveillance | E84: Tactical Binocular Night Vision Device 2200 | F84: 7443 | G84: 18 | H84: 133974
C85: 509518 | D85: Vehicles | E85: Fully Equipment Police Vehicles | F85: 65839.87 | G85: 2 | H85: 131679.74
C86: 509095 | D86: Vehicle Accessories | E86: Equipment, Installation of Equipment, and Marking Vehicle Costs | F86: 21871.65 | G86: 6 | H86: 131229.9
C87: 510353 | D87: Vehicles | E87: 2023 Ford Police Interceptor Utility with the 3.0L EcoBoost V6 engine | F87: 43033.12 | G87: 3 | H87: 129099.36
C88: 508975 | D88: Vehicles | E88: F-150 Police Packaged Truck with Hard Bed Cover and Vault | F88: 64373 | G88: 2 | H88: 128746
C89: 509968 | D89: Vehicles | E89: 2023 Dodge Durango Pursuit V^ AWD | F89: 42746 | G89: 3 | H89: 128238
C90: 509219 | D90: Communications Equipment | E90: New P25 Compliant Radio System | F90: 128000 | G90: 1 | H90: 128000
C91: 509340 | D91: Other | E91: Virtual Reality Theatre and Related Components | F91: 128000 | G91: 1 | H91: 128000
C92: 510073 | D92: Communications Equipment | E92: KA-SI-T2 Simulcast Option | F92: 5803 | G92: 22 | H92: 127666
C93: 509362 | D93: Vehicles | E93: Chevrolet Tahoe | F93: 42000 | G93: 3 | H93: 126000
C94: 510072 | D94: Evidence Collection / Detective | E94: FUSUS Crime Center | F94: 125000 | G94: 1 | H94: 125000
C95: 510074 | D95: Evidence Collection / Detective | E95: FUSUS Crime Center | F95: 125000 | G95: 1 | H95: 125000
C96: 510075 | D96: Evidence Collection / Detective | E96: FUSUS Crime Center | F96: 125000 | G96: 1 | H96: 125000
C97: 509753 | D97: Vehicles | E97: Dodge Durango PPV AWD | F97: 41272.27 | G97: 3 | H97: 123816.81
C98: 509451 | D98: Communications Equipment | E98: Motorola Solutions APX6500BN Mobile Radio | F98: 6454.67 | G98: 19 | H98: 122638.73
C99: 508983 | D99: Surveillance | E99: Mobile Surveillance Platform | F99: 40730 | G99: 3 | H99: 122190
C100: 508934 | D100: Vehicles | E100: 2023 Ford Police interceptors to replace 2011 dodge chargers | F100: 60000 | G100: 2 | H100: 120000
C101: 509335 | D101: Vehicles | E101: School Resource Officer Vehicles | F101: 40000 | G101: 3 | H101: 120000
C102: 509789 | D102: Evidence Collection / Detective | E102: Total Station System - Leica RTC360 or similar | F102: 120000 | G102: 1 | H102: 120000
C103: 509995 | D103: Vehicles | E103: 2023 Dodge Charger | F103: 40000 | G103: 3 | H103: 120000
C104: 510384 | D104: Vehicles | E104: Fully equipped Police Vehicle for Investigations Division | F104: 60000 | G104: 2 | H104: 120000
C105: 510346 | D105: Firearm Accessories | E105: Rifle Optics with Mount | F105: 742.3 | G105: 160 | H105: 118768
C106: 509778 | D106: Vehicles | E106: 2023 Ford Police Interceptor Utility AWD | F106: 39487.2 | G106: 3 | H106: 118461.6
C107: 509313 | D107: Evidence Collection / Detective | E107: Digital Cameras | F107: 6567 | G107: 18 | H107: 118206
C108: 509937 | D108: Evidence Collection / Detective | E108: Digital Cameras | F108: 6567 | G108: 18 | H108: 118206
C109: 510467 | D109: Vehicles | E109: 2023 Ford Interceptor Utility AWD | F109: 39252 | G109: 3 | H109: 117756
C110: 509021 | D110: Vehicles | E110: 2023 Ford Police Interceptor Utility AWD | F110: 39251.8 | G110: 3 | H110: 117755.4
C111: 509353 | D111: Evidence Collection / Detective | E111: ForenScope | F111: 117570 | G111: 1 | H111: 117570
C112: 510784 | D112: Vehicles | E112: 2 Marked Police Vehicles | F112: 57660 | G112: 2 | H112: 115320
C113: 509114 | D113: Vehicles | E113: Police Patrol Vehicle | F113: 38325 | G113: 3 | H113: 114975
C114: 510366 | D114: Surveillance | E114: DG Visual Security Camera System | F114: 3273.9 | G114: 35 | H114: 114586.5
C115: 509182 | D115: Other | E115: Emergency Dispatch Console for Law Enforcement | F115: 114100 | G115: 1 | H115: 114100
C116: 510246 | D116: Vehicles | E116: Dodge Durango Police Package | F116: 38000 | G116: 3 | H116: 114000
C117: 510363 | D117: Tasers & Taser Accessories | E117: Taser 10 | F117: 3793 | G117: 30 | H117: 113790
C118: 509289 | D118: Surveillance | E118: US Night Vision PVS-14 | F118: 113380.2 | G118: 1 | H118: 113380.2
C119: 509057 | D119: Vehicles | E119: 2023 Ford Utility Police Interceptor | F119: 37580.62 | G119: 3 | H119: 112741.86
C120: 510284 | D120: Surveillance | E120: ALPR (hardware) | F120: 8027.4 | G120: 14 | H120: 112383.6
C121: 509996 | D121: Vehicles | E121: Ford Utility Vehicles | F121: 37454 | G121: 3 | H121: 112362
C122: 510251 | D122: Vehicles | E122: Standard LE Patrol Vehicle | F122: 56000 | G122: 2 | H122: 112000
C123: 509833 | D123: Firearms | E123: Rifle | F123: 4137 | G123: 27 | H123: 111699
C124: 510183 | D124: Other | E124: Driving Add-on for MILO Simulator | F124: 110904 | G124: 1 | H124: 110904
C125: 510177 | D125: Communications Equipment | E125: Portable Radios | F125: 3954 | G125: 28 | H125: 110712
C126: 509358 | D126: Evidence Collection / Detective | E126: Grayshift GrayKey | F126: 110435 | G126: 1 | H126: 110435
C127: 509123 | D127: Vehicles | E127: Police Patrol Vehicle | F127: 55000 | G127: 2 | H127: 110000
C128: 509571 | D128: Vehicles | E128: 2024 Ford Transit 350,12-Pass Van | F128: 55000 | G128: 2 | H128: 110000
C129: 509721 | D129: Vehicles | E129: Vehicle - Van | F129: 55000 | G129: 2 | H129: 110000
C130: 509785 | D130: Vehicles | E130: Dodge Charger Patrol Vehicle | F130: 36512 | G130: 3 | H130: 109536
C131: 510183 | D131: Evidence Collection / Detective | E131: IBIS Access/NIBIN | F131: 108625 | G131: 1 | H131: 108625
C132: 510794 | D132: Vehicles | E132: Police vehicle | F132: 54000 | G132: 2 | H132: 108000
C133: 510054 | D133: Evidence Collection / Detective | E133: CELLBRITE | F133: 107169 | G133: 1 | H133: 107169
C134: 509958 | D134: Surveillance | E134: Acoem ATD gunshot detection system | F134: 15250 | G134: 7 | H134: 106750
C135: 509491 | D135: Tasers & Taser Accessories | E135: Tasers | F135: 4218.81 | G135: 25 | H135: 105470.25
C136: 510309 | D136: Surveillance | E136: Flock Cameras | F136: 21000 | G136: 5 | H136: 105000
C137: 509833 | D137: Other | E137: Insight Public Sector - Cobwebs : Retroactive Request | F137: 104974.62 | G137: 1 | H137: 104974.62
C138: 509275 | D138: Other | E138: Dispatch Console | F138: 103965 | G138: 1 | H138: 103965
C139: 509494 | D139: Vehicles | E139: Vehicles | F139: 51000 | G139: 2 | H139: 102000
C140: 509610 | D140: Vehicles | E140: Police SUV Vehicle | F140: 51000 | G140: 2 | H140: 102000
C141: 509093 | D141: Vehicles | E141: Marine Vessel | F141: 100000 | G141: 1 | H141: 100000
C142: 509340 | D142: Surveillance | E142: Mobile Surveillance Unit | F142: 50000 | G142: 2 | H142: 100000
C143: 509485 | D143: Vehicle Accessories | E143: Security package for 2023 Ford 350 Transit Van - $100,000 from Operating Funds | F143: 25000 | G143: 4 | H143: 100000
C144: 509598 | D144: Vehicles | E144: Transportation Vans (total of 3) | F144: 99864.89 | G144: 1 | H144: 99864.89
C145: 509359 | D145: Tasers & Taser Accessories | E145: TASER Bundle | F145: 4968.96 | G145: 20 | H145: 99379.2
C146: 509491 | D146: Communications Equipment | E146: Mobile Data Terminals | F146: 4871.1 | G146: 20 | H146: 97422
C147: 508912 | D147: Other | E147: Cisco Call Manager Servers | F147: 48593 | G147: 2 | H147: 97186
C148: 510073 | D148: Other | E148: Installation of equipment | F148: 96500 | G148: 1 | H148: 96500
C149: 509724 | D149: Vehicles | E149: Patrol Vehicle | F149: 48000 | G149: 2 | H149: 96000
C150: 509481 | D150: Communications Equipment | E150: Complete Kenwwod Viking Radio Package System for Deputy and Vehicle | F150: 11989.85 | G150: 8 | H150: 95918.8
C151: 509093 | D151: Firearms | E151: Glock 19 with sights/lights/holsters | F151: 851 | G151: 110 | H151: 93610
C152: 509431 | D152: Vehicles | E152: New Chevrolet Tahoe SSV | F152: 46000 | G152: 2 | H152: 92000
C153: 509606 | D153: Vehicles | E153: 2023 Ford Interceptor Utility Vehicle | F153: 45643 | G153: 2 | H153: 91286
C154: 509485 | D154: Computers, TVs, Tablets & Electronics Accessories | E154: NVT Phybridge NV-ECLK-PLS-1XEC-Link + Adaptor - Grant Funds | F154: 257 | G154: 354 | H154: 90978
C155: 509718 | D155: Body Armor | E155: Protective vests | F155: 1298.04 | G155: 70 | H155: 90863
C156: 510054 | D156: Body Armor | E156: BALLISTIC SHIELDS | F156: 5295 | G156: 17 | H156: 90015
C157: 509774 | D157: Evidence Collection / Detective | E157: FLIR PTZ camera | F157: 90000 | G157: 1 | H157: 90000
C158: 510291 | D158: Vehicles | E158: 2023 Dodge Durango Police Pkg. V6 Sports Utility Vehicles | F158: 45000 | G158: 2 | H158: 90000
C159: 510385 | D159: Vehicles | E159: Standard Police Vehicle | F159: 45000 | G159: 2 | H159: 90000
C160: 510147 | D160: Evidence Collection / Detective | E160: Portable Hand-Held X-Ray Scanner | F160: 90000 | G160: 1 | H160: 90000
C161: 510797 | D161: Vehicles | E161: Vehicle | F161: 45000 | G161: 2 | H161: 90000
C162: 509894 | D162: Drones | E162: Lemur 2 Drone | F162: 89895 | G162: 1 | H162: 89895
C163: 510133 | D163: Vehicles | E163: Prisoner Transportation Vans | F163: 44615 | G163: 2 | H163: 89230
C164: 509552 | D164: Vehicles | E164: Police Vehicle | F164: 43659 | G164: 2 | H164: 87318
C165: 509485 | D165: Computers, TVs, Tablets & Electronics Accessories | E165: NVT Phybridge CLEER24-10G Gigabit 24-Port PoE+Switch-$28,128 from Grant/$59,031 from Operating Funds | F165: 5127 | G165: 17 | H165: 87159
C166: 510064 | D166: Surveillance | E166: Fixed Automated License Plate Reader w/ 4 year subscription | F166: 12350 | G166: 7 | H166: 86450
C167: 509289 | D167: Firearms | E167: Service Pistol upgrade | F167: 86410 | G167: 1 | H167: 86410
C168: 509353 | D168: Other | E168: Water Tank | F168: 86060 | G168: 1 | H168: 86060
C169: 509275 | D169: Vehicles | E169: Vehicles | F169: 42992 | G169: 2 | H169: 85984
C170: 509609 | D170: Vehicle Accessories | E170: In car video camera system | F170: 5728 | G170: 15 | H170: 85920
C171: 510180 | D171: Body Armor | E171: Paraclete Level III Shields | F171: 9506.88 | G171: 9 | H171: 85561.92
C172: 509779 | D172: Surveillance | E172: Multi-Sensor Starlight Camera | F172: 3123 | G172: 27 | H172: 84321
C173: 510017 | D173: Vehicles | E173: 2023 Dodge Durango Pursuit V8 AWD | F173: 42123 | G173: 2 | H173: 84246
C174: 509205 | D174: Surveillance | E174: License Plate Recognition Cameras | F174: 6000 | G174: 14 | H174: 84000
C175: 509750 | D175: Vehicles | E175: 2 Chevrolet Tahoes | F175: 42000 | G175: 2 | H175: 84000
C176: 509478 | D176: Vehicles | E176: 2023 Dodge Durango-marked | F176: 42000 | G176: 2 | H176: 84000
C177: 509755 | D177: Vehicles | E177: 2 Cevy Tahoe | F177: 84000 | G177: 1 | H177: 84000
C178: 510177 | D178: Vehicles | E178: Patrol Vehicle | F178: 42000 | G178: 2 | H178: 84000
C179: 510592 | D179: Vehicles | E179: 2022 Chevrolet Tahoe PPV | F179: 41909 | G179: 2 | H179: 83818
C180: 510073 | D180: Communications Equipment | E180: KA-500 Kairos Repeaters | F180: 3800 | G180: 22 | H180: 83600
C181: 509450 | D181: Vehicle Accessories | E181: Mobile Command Center - Vehicle | F181: 41767.5 | G181: 2 | H181: 83535
C182: 510285 | D182: Surveillance | E182: Pole Camera with Analytic Software | F182: 82775 | G182: 1 | H182: 82775
C183: 509474 | D183: Vehicles | E183: Police Vehicle Equipment | F183: 16471.75 | G183: 5 | H183: 82358.75
C184: 509348 | D184: Surveillance | E184: Avigilon Camera | F184: 11714.29 | G184: 7 | H184: 82000
C185: 509376 | D185: Vehicles | E185: Crime Prevention/Patrol & Criminal Investigations Vehicle - Pick-Up Truck/SUV | F185: 41000 | G185: 2 | H185: 82000
C186: 510810 | D186: Surveillance | E186: Avigilon Camera | F186: 11714.29 | G186: 7 | H186: 82000
C187: 510110 | D187: Body Armor | E187: Tac - Helmets with Radio communication STARS Compatible | F187: 81897 | G187: 1 | H187: 81897
C188: 509143 | D188: Vehicle Accessories | E188: Eyewitness In-Car Camera System for Fleet | F188: 80706 | G188: 1 | H188: 80706
C189: 509453 | D189: Vehicle Accessories | E189: In Car Camera System | F189: 11450 | G189: 7 | H189: 80150
C190: 509312 | D190: Vehicles | E190: Standard Law Enforcement Vehicle | F190: 40000 | G190: 2 | H190: 80000
C191: 510147 | D191: Surveillance | E191: Package Scanner for Commissary and Agency Packages | F191: 80000 | G191: 1 | H191: 80000
C192: 509820 | D192: Firearms | E192: Patrol rifle with peripherals | F192: 2665 | G192: 30 | H192: 79950
C193: 509490 | D193: Vehicles | E193: 2023 Ford Police Interceptor Utility AWD | F193: 39661 | G193: 2 | H193: 79322
C194: 510287 | D194: Vehicles | E194: 2023 Police Rated Ford Explorer | F194: 39543.6 | G194: 2 | H194: 79087.2
C195: 509084 | D195: Tasers & Taser Accessories | E195: Taser 7 Certification Bundle | F195: 3163 | G195: 25 | H195: 79075
C196: 510064 | D196: Vehicles | E196: Mini-Van | F196: 39275 | G196: 2 | H196: 78550
C197: 509957 | D197: Evidence Collection / Detective | E197: FARO Focus Premium | F197: 78534.52 | G197: 1 | H197: 78534.52
C198: 509359 | D198: Vehicles | E198: Patrol Vehicles | F198: 39134.3 | G198: 2 | H198: 78268.6
C199: 509609 | D199: Vehicles | E199: Ford Police Interceptor Utility Patrol Vehicle | F199: 39045 | G199: 2 | H199: 78090
C200: 510285 | D200: Vehicles | E200: Marked Police Vehicle | F200: 39000 | G200: 2 | H200: 78000
C201: 509957 | D201: Evidence Collection / Detective | E201: FSIS II Color Lab System | F201: 77408.87 | G201: 1 | H201: 77408.87
C202: 508983 | D202: Evidence Collection / Detective | E202: Laser Scanner | F202: 76914 | G202: 1 | H202: 76914
C203: 510029 | D203: Vehicle Accessories | E203: Emergency Lighting, console, protective cage | F203: 9589.99 | G203: 8 | H203: 76719.92
... 2846 more rows

Sheet 2023_04_24 Item Data Export (hidden)
A1: Id | B1: Primary Contact | C1: Organization | D1: Category | E1: Item | F1: Cost Per Item/Monthly Rate | G1: Quantity | H1: Total Cost
A2: 510072 | B2: Dustin Sloan | C2: Petersburg | D2: Computers, TVs, Tablets & Electronics Accessories | E2: Laptops | F2: 6775 | G2: 92 | H2: 623300
A3: 510074 | B3: Dustin Sloan | C3: Petersburg | D3: Computers, TVs, Tablets & Electronics Accessories | E3: Laptops | F3: 6775 | G3: 92 | H3: 623300
A4: 510075 | B4: Dustin Sloan | C4: Petersburg | D4: Computers, TVs, Tablets & Electronics Accessories | E4: Laptops | F4: 6775 | G4: 92 | H4: 623300
A5: 509273 | B5: Raymond Liu | C5: Fairfax | D5: Other | E5: FX Robot | F5: 549212 | G5: 1 | H5: 549212
A6: 509273 | B6: Raymond Liu | C6: Fairfax | D6: Other | E6: Titus Robot | F6: 450788 | G6: 1 | H6: 450788
A7: 509078 | B7: Gabriel Johnson | C7: Smyth | D7: Vehicles | E7: Patrol Vehicles | F7: 40000 | G7: 11 | H7: 440000
A8: 509353 | B8: Theresa Soska | C8: Virginia Beach | D8: Vehicles | E8: Marine Patrol Boat | F8: 403230 | G8: 1 | H8: 403230
A9: 509314 | B9: Marie Grant | C9: Dinwiddie | D9: Vehicles | E9: Mobile Data Terminals for Patrol Vehicles | F9: 6961.58 | G9: 50 | H9: 348079
A10: 509983 | B10: Robert Bost | C10: Lee | D10: Vehicles | E10: 2023 Ford SUV 3.3L V6 | F10: 58000 | G10: 6 | H10: 348000
A11: 509352 | B11: Alfreda Mullins | C11: Dickenson | D11: Vehicles | E11: Fully Equipped Patrol Vehicles | F11: 69000 | G11: 5 | H11: 345000
A12: 510513 | B12: Jason North | C12: Alexandria | D12: Surveillance | E12: ShotSpotter | F12: 26500 | G12: 12 | H12: 318000
A13: 510029 | B13: John Austin | C13: Bristol | D13: Vehicles | E13: Vehicle | F13: 34962.6 | G13: 9 | H13: 314663.4
A14: 510251 | B14: Patrick Elwell | C14: Winchester | D14: Surveillance | E14: Automatic License Plate Recognition System | F14: 8500 | G14: 36 | H14: 306000
A15: 509485 | B15: Charlene Brewer | C15: Southwest Virginia Regional Jail Authority | D15: Surveillance | E15: Installation of security cameras - Installation by Vendor (Esitech) $302,500 from Operating Funds | F15: 5500 | G15: 55 | H15: 302500
A16: 509290 | B16: Kimberly Parson | C16: Hopewell | D16: Tasers & Taser Accessories | E16: Axon Taser 7 | F16: 56000 | G16: 5 | H16: 280000
A17: 509095 | B17: Jeffrey Dodson | C17: Radford | D17: Vehicles | E17: Ford Police Interceptor Utility AWD | F17: 43763.8 | G17: 6 | H17: 262582.8
A18: 509224 | B18: DeWitt Cooper | C18: Galax | D18: Vehicles | E18: Police Vehicles | F18: 43000 | G18: 6 | H18: 258000
A19: 509451 | B19: Jaclyn Clark | C19: Prince William | D19: Other | E19: VirTra V-300 Simulation Training System | F19: 256148.67 | G19: 1 | H19: 256148.67
A20: 510510 | B20: Tina Jordan | C20: Rockingham | D20: Vehicles | E20: Ford Explorer | F20: 50600 | G20: 5 | H20: 253000
A21: 509458 | B21: Mark Hollandsworth | C21: Montgomery | D21: Vehicles | E21: Patrol Response Vehicles-Road Ready Equipped | F21: 63000 | G21: 4 | H21: 252000
A22: 509292 | B22: Ervin Taylor | C22: Virginia CWealth Univ | D22: Other | E22: FUSE-E-1-1001 | F22: 10416.67 | G22: 24 | H22: 250000.08
A23: 510180 | B23: Travis Hambrick | C23: Henry | D23: Surveillance | E23: Flock Safety Camera System | F23: 3725 | G23: 60 | H23: 223500
A24: 509352 | B24: Alfreda Mullins | C24: Dickenson | D24: Communications Equipment | E24: Radio System Upgrade | F24: 220735 | G24: 1 | H24: 220735
A25: 509481 | B25: Jonathan Hankins | C25: Tazewell County | D25: Vehicles | E25: 2023 Police Interceptor Utility AWD | F25: 43365 | G25: 5 | H25: 216825
A26: 509485 | B26: Charlene Brewer | C26: Southwest Virginia Regional Jail Authority | D26: Vehicles | E26: 2023 Ford Transit 350 Cargo Van - $214,944 from Operating Funds | F26: 53736 | G26: 4 | H26: 214944
A27: 509284 | B27: Ronald Holt | C27: Richlands | D27: Vehicles | E27: 2023 Tahoe PPV 4WD | F27: 53000 | G27: 4 | H27: 212000
A28: 509376 | B28: Courtney Lafkin-Coffman | C28: Page | D28: Vehicles | E28: Crime Prevention/ERT Vehicle - Durango | F28: 42000 | G28: 5 | H28: 210000
A29: 509833 | B29: AMANDA CARTER | C29: Chesterfield | D29: Surveillance | E29: Fusus One - Enterprise Plus Upgrade | F29: 209165.08 | G29: 1 | H29: 209165.08
A30: 510281 | B30: Chuck Edwards | C30: Carroll | D30: Vehicles | E30: Chevrolet Tahoe | F30: 52235 | G30: 4 | H30: 208940
A31: 509474 | B31: David Shaw | C31: Waynesboro | D31: Vehicles | E31: Police Patrol Vehicle | F31: 41709.9 | G31: 5 | H31: 208549.5
A32: 509431 | B32: David Clements | C32: Buena Vista | D32: Vehicles | E32: New Ford Utility SUV Police Package | F32: 51625 | G32: 4 | H32: 206500
A33: 509220 | B33: Lucas Nester | C33: Pulaski County | D33: Vehicles | E33: Fully Equipped Patrol Vehicles | F33: 50000 | G33: 4 | H33: 200000
A34: 510290 | B34: Tara Hollandsworth | C34: Floyd | D34: Vehicles | E34: 2023 Dodge Durango Patrol Vehicle/Upfit | F34: 66600 | G34: 3 | H34: 199800
A35: 510174 | B35: Clinton Phillips | C35: Alleghany | D35: Vehicles | E35: 2022 Police Interceptor Utility AWD | F35: 39730.56 | G35: 5 | H35: 198652.8
A36: 509033 | B36: Thomas West | C36: York | D36: Vehicles | E36: Ford Police Interceptor Utility Vehicle | F36: 47500 | G36: 4 | H36: 190000
A37: 509205 | B37: Candice Dodd | C37: Harrisonburg | D37: Vehicles | E37: Police Vehicles | F37: 62795 | G37: 3 | H37: 188385
A38: 510122 | B38: William Stembridge | C38: Chase City | D38: Vehicles | E38: Police SUV | F38: 47000 | G38: 4 | H38: 188000
A39: 510186 | B39: Rhonda Mason | C39: Campbell | D39: Tasers & Taser Accessories | E39: Taser 7 | F39: 2539 | G39: 74 | H39: 187886
A40: 509521 | B40: Joshua Marsh | C40: Accomack | D40: Vehicles | E40: Unmarked Patrol Vehicles | F40: 45000 | G40: 4 | H40: 180000
A41: 509224 | B41: DeWitt Cooper | C41: Galax | D41: Vehicles | E41: Leased Vehicles | F41: 44750 | G41: 4 | H41: 179000
A42: 509485 | B42: Charlene Brewer | C42: Southwest Virginia Regional Jail Authority | D42: Surveillance | E42: Axis Q6315-LE HDTV 1080p PTZ Camera w/Quick Zoom & Laser Focus - Grant Funds | F42: 3249 | G42: 55 | H42: 178695
A43: 509492 | B43: Bernice Letterman | C43: Prince Edward | D43: Vehicles | E43: Vehicles | F43: 43638.6 | G43: 4 | H43: 174554.4
A44: 509521 | B44: Joshua Marsh | C44: Accomack | D44: Evidence Collection / Detective | E44: IBIS Solutions (BrassTrax) | F44: 174000 | G44: 1 | H44: 174000
A45: 510232 | B45: Ronnie Roberts | C45: Louisa County | D45: Vehicles | E45: Chevrolet PPV | F45: 43500 | G45: 4 | H45: 174000
A46: 510183 | B46: Allison VanPeeren | C46: Suffolk | D46: Surveillance | E46: Real-time Crime Center Technology | F46: 172565 | G46: 1 | H46: 172565
A47: 509375 | B47: Tammy Newcomb | C47: Brunswick | D47: Vehicles | E47: Ford Police Interceptor Utility AWD | F47: 43000 | G47: 4 | H47: 172000
A48: 509778 | B48: Allison Gibson | C48: Scott | D48: Vehicle Accessories | E48: M500 In-Car Camera System (including warranty, training, installation, etc.) | F48: 11940.71 | G48: 14 | H48: 167169.94
A49: 509485 | B49: Charlene Brewer | C49: Southwest Virginia Regional Jail Authority | D49: Surveillance | E49: Axis TP3265-LE Indoor 2MP Dome w/IR & Deep Learning - Grant Funds | F49: 639 | G49: 260 | H49: 166140
A50: 510023 | B50: Jacob Siddons | C50: Tappahannock | D50: Vehicles | E50: Vehicle | F50: 55013 | G50: 3 | H50: 165039
A51: 509357 | B51: Michael Henley | C51: Hillsville | D51: Vehicles | E51: Patrol Vehicles | F51: 55000 | G51: 3 | H51: 165000
A52: 510448 | B52: Beth Healy | C52: Rappahannock Regional Jail | D52: Evidence Collection / Detective | E52: Body Scanner | F52: 162500 | G52: 1 | H52: 162500
A53: 510462 | B53: Camden Cobb | C53: Southampton | D53: Communications Equipment | E53: Portable Radios | F53: 5400 | G53: 30 | H53: 162000
A54: 509957 | B54: Concetta Shipp | C54: Loudoun | D54: Surveillance | E54: Automatic License Plate Reader | F54: 16114.9 | G54: 10 | H54: 161149
A55: 509460 | B55: Thomas Merricks | C55: Altavista | D55: Vehicles | E55: 2023 Ford Police Interceptor Utility AWD (K8A) | F55: 39765.65 | G55: 4 | H55: 159062.6
A56: 509441 | B56: Chad Kauffman | C56: Staunton | D56: Vehicles | E56: Ford Police Interceptor SUV | F56: 39308 | G56: 4 | H56: 157232
A57: 510346 | B57: Annette D'Alessandro | C57: Spotsylvania | D57: Firearm Accessories | E57: Handgun Optics with Mount | F57: 552.42 | G57: 280 | H57: 154677.6
A58: 509054 | B58: Deborah Clark | C58: Mecklenburg | D58: Surveillance | E58: EOTECH EOT-BINO-AI-B-C Binonv-C Binoculars | F58: 11739.2 | G58: 13 | H58: 152609.6
A59: 510147 | B59: Ronda Wiggins | C59: Prince William | D59: Surveillance | E59: Cameras for PODS, Kitchen and Armory | F59: 16826.44 | G59: 9 | H59: 151437.96
A60: 510386 | B60: Hannah Perry | C60: Washington | D60: Vehicles | E60: Vehicles - Dodge Chargers | F60: 37626 | G60: 4 | H60: 150504
A61: 509785 | B61: Angelo DiMartino | C61: Exmore | D61: Surveillance | E61: Absolute Security Network Camera System | F61: 150000 | G61: 1 | H61: 150000
A62: 509492 | B62: Bernice Letterman | C62: Prince Edward | D62: Communications Equipment | E62: Repeaters | F62: 8331.73 | G62: 18 | H62: 149971.14
A63: 509774 | B63: Katrina Moore | C63: Henrico | D63: Evidence Collection / Detective | E63: BrassTRAX | F63: 149860 | G63: 1 | H63: 149860
A64: 510026 | B64: Roger Bell | C64: Patrick | D64: Communications Equipment | E64: Apco Project 25 Simulcast System | F64: 148500 | G64: 1 | H64: 148500
A65: 509260 | B65: Justin Wargofcak | C65: Amelia | D65: Vehicle Accessories | E65: MDT (In car computer) | F65: 6140 | G65: 24 | H65: 147360
A66: 509954 | B66: William Webb | C66: Lancaster | D66: Vehicle Accessories | E66: Motorola In-Car Video System & Video Manager El Cloud | F66: 10384.43 | G66: 14 | H66: 145382.02
A67: 509344 | B67: Brianna Rogers | C67: Hampton Roads Regional Jail | D67: Evidence Collection / Detective | E67: Tek84 Intercept Full Body X-Ray Scanner | F67: 144500 | G67: 1 | H67: 144500
A68: 509363 | B68: Phillip Braverman | C68: Middle River Regional Jail | D68: Evidence Collection / Detective | E68: Tek84 Intercept Body Scanner | F68: 144000 | G68: 1 | H68: 144000
A69: 509451 | B69: Jaclyn Clark | C69: Prince William | D69: Communications Equipment | E69: Motorola Solutions APX6000BN Portable Radio | F69: 5417.6 | G69: 26 | H69: 140857.6
A70: 509930 | B70: Dianna Gomez | C70: Orange | D70: Vehicles | E70: Standard Law Enforcement Vehicles | F70: 70000 | G70: 2 | H70: 140000
A71: 510464 | B71: Mario Lugo | C71: Manassas Park | D71: Vehicles | E71: Police Vehicle Interceptor | F71: 70000 | G71: 2 | H71: 140000
A72: 510365 | B72: Robert Porti | C72: Franklin | D72: Vehicles | E72: Marked patrol vehicles | F72: 46444.8 | G72: 3 | H72: 139334.4
A73: 509504 | B73: Mandy Lowe | C73: Bluefield | D73: Vehicles | E73: 2023 Ford Police Rated Responder F-150 4x4 W1P | F73: 46095 | G73: 3 | H73: 138285
A74: 510447 | B74: Lindsey Childress | C74: Caroline | D74: Vehicles | E74: Vehicles | F74: 68066 | G74: 2 | H74: 136132
A75: 509143 | B75: Donald Penland | C75: Lunenburg | D75: Vehicles | E75: 2023 Chevrolet Tahoe Police Vehicle | F75: 45080 | G75: 3 | H75: 135240
A76: 509085 | B76: Jesse Jones | C76: Pennington Gap | D76: Vehicles | E76: PATROL VEHICLE | F76: 45000 | G76: 3 | H76: 135000
A77: 509491 | B77: Gregory Mays | C77: Norton | D77: Vehicles | E77: Police Interceptor | F77: 67489.87 | G77: 2 | H77: 134979.74
A78: 509514 | B78: Julie Richman | C78: Shenandoah County | D78: Surveillance | E78: Tactical Binocular Night Vision Device 2200 | F78: 7443 | G78: 18 | H78: 133974
A79: 509518 | B79: Cindy Moses | C79: Christiansburg | D79: Vehicles | E79: Fully Equipment Police Vehicles | F79: 65839.87 | G79: 2 | H79: 131679.74
A80: 509095 | B80: Jeffrey Dodson | C80: Radford | D80: Vehicle Accessories | E80: Equipment, Installation of Equipment, and Marking Vehicle Costs | F80: 21871.65 | G80: 6 | H80: 131229.9
A81: 510353 | B81: Richard Brammer | C81: Old Dominion Univ | D81: Vehicles | E81: 2023 Ford Police Interceptor Utility with the 3.0L EcoBoost V6 engine | F81: 43033.12 | G81: 3 | H81: 129099.36
A82: 508975 | B82: Mike Foster | C82: Colonial Heights | D82: Vehicles | E82: F-150 Police Packaged Truck with Hard Bed Cover and Vault | F82: 64373 | G82: 2 | H82: 128746
A83: 509968 | B83: Petrina Grubbs | C83: Bedford County | D83: Vehicles | E83: 2023 Dodge Durango Pursuit V^ AWD | F83: 42746 | G83: 3 | H83: 128238
A84: 509219 | B84: Michael Wagoner | C84: Luray | D84: Communications Equipment | E84: New P25 Compliant Radio System | F84: 128000 | G84: 1 | H84: 128000
A85: 509340 | B85: David Parrish | C85: Hanover | D85: Other | E85: Virtual Reality Theatre and Related Components | F85: 128000 | G85: 1 | H85: 128000
A86: 510073 | B86: Jeffrey Dinger | C86: Giles | D86: Communications Equipment | E86: KA-SI-T2 Simulcast Option | F86: 5803 | G86: 22 | H86: 127666
A87: 509362 | B87: John Johnson | C87: Richmond | D87: Vehicles | E87: Chevrolet Tahoe | F87: 42000 | G87: 3 | H87: 126000
A88: 510072 | B88: Dustin Sloan | C88: Petersburg | D88: Evidence Collection / Detective | E88: FUSUS Crime Center | F88: 125000 | G88: 1 | H88: 125000
A89: 510074 | B89: Dustin Sloan | C89: Petersburg | D89: Evidence Collection / Detective | E89: FUSUS Crime Center | F89: 125000 | G89: 1 | H89: 125000
A90: 510075 | B90: Dustin Sloan | C90: Petersburg | D90: Evidence Collection / Detective | E90: FUSUS Crime Center | F90: 125000 | G90: 1 | H90: 125000
A91: 509753 | B91: Rodney Brisentine | C91: Appomattox County | D91: Vehicles | E91: Dodge Durango PPV AWD | F91: 41272.27 | G91: 3 | H91: 123816.81
A92: 509451 | B92: Jaclyn Clark | C92: Prince William | D92: Communications Equipment | E92: Motorola Solutions APX6500BN Mobile Radio | F92: 6454.67 | G92: 19 | H92: 122638.73
A93: 508983 | B93: Donald Owens | C93: Fredericksburg | D93: Surveillance | E93: Mobile Surveillance Platform | F93: 40730 | G93: 3 | H93: 122190
A94: 508934 | B94: James Morgan | C94: Crewe | D94: Vehicles | E94: 2023 Ford Police interceptors to replace 2011 dodge chargers | F94: 60000 | G94: 2 | H94: 120000
A95: 509335 | B95: Joshua Berry | C95: Rockbridge | D95: Vehicles | E95: School Resource Officer Vehicles | F95: 40000 | G95: 3 | H95: 120000
A96: 509789 | B96: Taylor Harvey-Ryan | C96: Charlottesville | D96: Evidence Collection / Detective | E96: Total Station System - Leica RTC360 or similar | F96: 120000 | G96: 1 | H96: 120000
A97: 509995 | B97: Steve Lewis | C97: Northampton | D97: Vehicles | E97: 2023 Dodge Charger | F97: 40000 | G97: 3 | H97: 120000
A98: 510384 | B98: Bryan Young | C98: South Boston | D98: Vehicles | E98: Fully equipped Police Vehicle for Investigations Division | F98: 60000 | G98: 2 | H98: 120000
A99: 510346 | B99: Annette D'Alessandro | C99: Spotsylvania | D99: Firearm Accessories | E99: Rifle Optics with Mount | F99: 742.3 | G99: 160 | H99: 118768
A100: 509778 | B100: Allison Gibson | C100: Scott | D100: Vehicles | E100: 2023 Ford Police Interceptor Utility AWD | F100: 39487.2 | G100: 3 | H100: 118461.6
A101: 509313 | B101: Daniel O'Dell | C101: New River Valley Reg. Jail Auth. | D101: Evidence Collection / Detective | E101: Digital Cameras | F101: 6567 | G101: 18 | H101: 118206
A102: 509937 | B102: Daniel O'Dell | C102: New River Valley Reg. Jail Auth. | D102: Evidence Collection / Detective | E102: Digital Cameras | F102: 6567 | G102: 18 | H102: 118206
A103: 510467 | B103: Christopher Smith | C103: Westmoreland | D103: Vehicles | E103: 2023 Ford Interceptor Utility AWD | F103: 39252 | G103: 3 | H103: 117756
A104: 509021 | B104: Emma Fazzini | C104: Strasburg | D104: Vehicles | E104: 2023 Ford Police Interceptor Utility AWD | F104: 39251.8 | G104: 3 | H104: 117755.4
A105: 509353 | B105: Theresa Soska | C105: Virginia Beach | D105: Evidence Collection / Detective | E105: ForenScope | F105: 117570 | G105: 1 | H105: 117570
A106: 510784 | B106: Gregory Deaver | C106: Colonial Beach | D106: Vehicles | E106: 2 Marked Police Vehicles | F106: 57660 | G106: 2 | H106: 115320
A107: 509114 | B107: Christopher Mathias | C107: Blackstone | D107: Vehicles | E107: Police Patrol Vehicle | F107: 38325 | G107: 3 | H107: 114975
A108: 510366 | B108: Eric Williams | C108: Onancock | D108: Surveillance | E108: DG Visual Security Camera System | F108: 3273.9 | G108: 35 | H108: 114586.5
A109: 509182 | B109: Gene Reams | C109: Essex | D109: Other | E109: Emergency Dispatch Console for Law Enforcement | F109: 114100 | G109: 1 | H109: 114100
A110: 510246 | B110: Angela Viers | C110: Pulaski | D110: Vehicles | E110: Dodge Durango Police Package | F110: 38000 | G110: 3 | H110: 114000
A111: 510363 | B111: Clare Casey | C111: City of Falls Church | D111: Tasers & Taser Accessories | E111: Taser 10 | F111: 3793 | G111: 30 | H111: 113790
A112: 509289 | B112: Brian Jenkins | C112: Augusta | D112: Surveillance | E112: US Night Vision PVS-14 | F112: 113380.2 | G112: 1 | H112: 113380.2
A113: 509057 | B113: Rusty Hamm | C113: Marion | D113: Vehicles | E113: 2023 Ford Utility Police Interceptor | F113: 37580.62 | G113: 3 | H113: 112741.86
A114: 510284 | B114: Maggie Ewell | C114: George Mason Univ | D114: Surveillance | E114: ALPR (hardware) | F114: 8027.4 | G114: 14 | H114: 112383.6
A115: 509996 | B115: David Wilkes | C115: Gretna | D115: Vehicles | E115: Ford Utility Vehicles | F115: 37454 | G115: 3 | H115: 112362
A116: 510251 | B116: Patrick Elwell | C116: Winchester | D116: Vehicles | E116: Standard LE Patrol Vehicle | F116: 56000 | G116: 2 | H116: 112000
A117: 509833 | B117: AMANDA CARTER | C117: Chesterfield | D117: Firearms | E117: Rifle | F117: 4137 | G117: 27 | H117: 111699
A118: 510183 | B118: Allison VanPeeren | C118: Suffolk | D118: Other | E118: Driving Add-on for MILO Simulator | F118: 110904 | G118: 1 | H118: 110904
A119: 510177 | B119: John Beauchamp | C119: Northumberland | D119: Communications Equipment | E119: Portable Radios | F119: 3954 | G119: 28 | H119: 110712
A120: 509358 | B120: Devron Reid | C120: Prince George | D120: Evidence Collection / Detective | E120: Grayshift GrayKey | F120: 110435 | G120: 1 | H120: 110435
A121: 509123 | B121: Danny French | C121: Wise | D121: Vehicles | E121: Police Patrol Vehicle | F121: 55000 | G121: 2 | H121: 110000
A122: 509571 | B122: Sarah Garrison | C122: Pamunkey Regional Jail | D122: Vehicles | E122: 2024 Ford Transit 350,12-Pass Van | F122: 55000 | G122: 2 | H122: 110000
A123: 509721 | B123: CRYSTAL REID | C123: Riverside Regional Jail | D123: Vehicles | E123: Vehicle - Van | F123: 55000 | G123: 2 | H123: 110000
A124: 509785 | B124: Angelo DiMartino | C124: Exmore | D124: Vehicles | E124: Dodge Charger Patrol Vehicle | F124: 36512 | G124: 3 | H124: 109536
A125: 510183 | B125: Allison VanPeeren | C125: Suffolk | D125: Evidence Collection / Detective | E125: IBIS Access/NIBIN | F125: 108625 | G125: 1 | H125: 108625
A126: 510794 | B126: Richard Hinkley | C126: Liberty University Police | D126: Vehicles | E126: Police vehicle | F126: 54000 | G126: 2 | H126: 108000
A127: 510054 | B127: Charles Sanders | C127: Wise County | D127: Evidence Collection / Detective | E127: CELLBRITE | F127: 107169 | G127: 1 | H127: 107169
A128: 509958 | B128: Tara Gallahan | C128: Dumfries | D128: Surveillance | E128: Acoem ATD gunshot detection system | F128: 15250 | G128: 7 | H128: 106750
A129: 509491 | B129: Gregory Mays | C129: Norton | D129: Tasers & Taser Accessories | E129: Tasers | F129: 4218.81 | G129: 25 | H129: 105470.25
A130: 510309 | B130: Laura Shelton | C130: Woodstock | D130: Surveillance | E130: Flock Cameras | F130: 21000 | G130: 5 | H130: 105000
A131: 509833 | B131: AMANDA CARTER | C131: Chesterfield | D131: Other | E131: Insight Public Sector - Cobwebs : Retroactive Request | F131: 104974.62 | G131: 1 | H131: 104974.62
A132: 509275 | B132: Karen Smith | C132: Grayson | D132: Other | E132: Dispatch Console | F132: 103965 | G132: 1 | H132: 103965
A133: 509494 | B133: Donald Harding | C133: Weber City | D133: Vehicles | E133: Vehicles | F133: 51000 | G133: 2 | H133: 102000
A134: 509610 | B134: Trey Blake | C134: Warsaw | D134: Vehicles | E134: Police SUV Vehicle | F134: 51000 | G134: 2 | H134: 102000
A135: 509093 | B135: Megan Huston | C135: Franklin County | D135: Vehicles | E135: Marine Vessel | F135: 100000 | G135: 1 | H135: 100000
A136: 509340 | B136: David Parrish | C136: Hanover | D136: Surveillance | E136: Mobile Surveillance Unit | F136: 50000 | G136: 2 | H136: 100000
A137: 509485 | B137: Charlene Brewer | C137: Southwest Virginia Regional Jail Authority | D137: Vehicle Accessories | E137: Security package for 2023 Ford 350 Transit Van - $100,000 from Operating Funds | F137: 25000 | G137: 4 | H137: 100000
A138: 509598 | B138: Lanay Walker | C138: Piedmont Regional Jail | D138: Vehicles | E138: Transportation Vans (total of 3) | F138: 99864.89 | G138: 1 | H138: 99864.89
A139: 509359 | B139: Melissa Tharpe | C139: Charlotte | D139: Tasers & Taser Accessories | E139: TASER Bundle | F139: 4968.96 | G139: 20 | H139: 99379.2
A140: 509491 | B140: Gregory Mays | C140: Norton | D140: Communications Equipment | E140: Mobile Data Terminals | F140: 4871.1 | G140: 20 | H140: 97422
A141: 508912 | B141: Christopher Hayes | C141: Western Virginia Reg Jail Authority | D141: Other | E141: Cisco Call Manager Servers | F141: 48593 | G141: 2 | H141: 97186
A142: 510073 | B142: Jeffrey Dinger | C142: Giles | D142: Other | E142: Installation of equipment | F142: 96500 | G142: 1 | H142: 96500
A143: 509724 | B143: Stuart Bowen | C143: South Hill | D143: Vehicles | E143: Patrol Vehicle | F143: 48000 | G143: 2 | H143: 96000
A144: 509481 | B144: Jonathan Hankins | C144: Tazewell County | D144: Communications Equipment | E144: Complete Kenwwod Viking Radio Package System for Deputy and Vehicle | F144: 11989.85 | G144: 8 | H144: 95918.8
A145: 509093 | B145: Megan Huston | C145: Franklin County | D145: Firearms | E145: Glock 19 with sights/lights/holsters | F145: 851 | G145: 110 | H145: 93610
A146: 509431 | B146: David Clements | C146: Buena Vista | D146: Vehicles | E146: New Chevrolet Tahoe SSV | F146: 46000 | G146: 2 | H146: 92000
A147: 509606 | B147: James Cowart | C147: Mt Jackson | D147: Vehicles | E147: 2023 Ford Interceptor Utility Vehicle | F147: 45643 | G147: 2 | H147: 91286
A148: 509485 | B148: Charlene Brewer | C148: Southwest Virginia Regional Jail Authority | D148: Computers, TVs, Tablets & Electronics Accessories | E148: NVT Phybridge NV-ECLK-PLS-1XEC-Link + Adaptor - Grant Funds | F148: 257 | G148: 354 | H148: 90978
A149: 509718 | B149: Michael Bollhoefer | C149: Northwestern Regional Adult Detention Center | D149: Body Armor | E149: Protective vests | F149: 1298.04 | G149: 70 | H149: 90863
A150: 510054 | B150: Charles Sanders | C150: Wise County | D150: Body Armor | E150: BALLISTIC SHIELDS | F150: 5295 | G150: 17 | H150: 90015
A151: 509774 | B151: Katrina Moore | C151: Henrico | D151: Evidence Collection / Detective | E151: FLIR PTZ camera | F151: 90000 | G151: 1 | H151: 90000
A152: 510291 | B152: Donna Curry | C152: Elkton | D152: Vehicles | E152: 2023 Dodge Durango Police Pkg. V6 Sports Utility Vehicles | F152: 45000 | G152: 2 | H152: 90000
A153: 510385 | B153: William Russell | C153: Kilmarnock | D153: Vehicles | E153: Standard Police Vehicle | F153: 45000 | G153: 2 | H153: 90000
A154: 510147 | B154: Ronda Wiggins | C154: Prince William | D154: Evidence Collection / Detective | E154: Portable Hand-Held X-Ray Scanner | F154: 90000 | G154: 1 | H154: 90000
A155: 510797 | B155: William Smith | C155: Western Tidewater Regional Jail | D155: Vehicles | E155: Vehicle | F155: 45000 | G155: 2 | H155: 90000
A156: 509894 | B156: Christopher Smith | C156: Covington | D156: Drones | E156: Lemur 2 Drone | F156: 89895 | G156: 1 | H156: 89895
A157: 510133 | B157: Barbara Creel | C157: Virginia Peninsula Regional Jail | D157: Vehicles | E157: Prisoner Transportation Vans | F157: 44615 | G157: 2 | H157: 89230
A158: 509552 | B158: Stephanie Kegley | C158: Lebanon | D158: Vehicles | E158: Police Vehicle | F158: 43659 | G158: 2 | H158: 87318
A159: 509485 | B159: Charlene Brewer | C159: Southwest Virginia Regional Jail Authority | D159: Computers, TVs, Tablets & Electronics Accessories | E159: NVT Phybridge CLEER24-10G Gigabit 24-Port PoE+Switch-$28,128 from Grant/$59,031 from Operating Funds | F159: 5127 | G159: 17 | H159: 87159
A160: 510064 | B160: Jason Ryman | C160: Front Royal | D160: Surveillance | E160: Fixed Automated License Plate Reader w/ 4 year subscription | F160: 12350 | G160: 7 | H160: 86450
A161: 509289 | B161: Brian Jenkins | C161: Augusta | D161: Firearms | E161: Service Pistol upgrade | F161: 86410 | G161: 1 | H161: 86410
A162: 509353 | B162: Theresa Soska | C162: Virginia Beach | D162: Other | E162: Water Tank | F162: 86060 | G162: 1 | H162: 86060
A163: 509275 | B163: Karen Smith | C163: Grayson | D163: Vehicles | E163: Vehicles | F163: 42992 | G163: 2 | H163: 85984
A164: 509609 | B164: Dennis Ownby | C164: Cumberland | D164: Vehicle Accessories | E164: In car video camera system | F164: 5728 | G164: 15 | H164: 85920
A165: 510180 | B165: Travis Hambrick | C165: Henry | D165: Body Armor | E165: Paraclete Level III Shields | F165: 9506.88 | G165: 9 | H165: 85561.92
A166: 509779 | B166: Andrea Kinser | C166: Middle Peninsula Regional Security Cntr | D166: Surveillance | E166: Multi-Sensor Starlight Camera | F166: 3123 | G166: 27 | H166: 84321
A167: 510017 | B167: Bethany Slaughter | C167: Bland | D167: Vehicles | E167: 2023 Dodge Durango Pursuit V8 AWD | F167: 42123 | G167: 2 | H167: 84246
A168: 509205 | B168: Candice Dodd | C168: Harrisonburg | D168: Surveillance | E168: License Plate Recognition Cameras | F168: 6000 | G168: 14 | H168: 84000
A169: 509750 | B169: Ronald Wimer | C169: Highland | D169: Vehicles | E169: 2 Chevrolet Tahoes | F169: 42000 | G169: 2 | H169: 84000
A170: 509478 | B170: Eileen Koehl | C170: Middlesex | D170: Vehicles | E170: 2023 Dodge Durango-marked | F170: 42000 | G170: 2 | H170: 84000
A171: 509755 | B171: Jeffrey Grimm | C171: Bath | D171: Vehicles | E171: 2 Cevy Tahoe | F171: 84000 | G171: 1 | H171: 84000
A172: 510177 | B172: John Beauchamp | C172: Northumberland | D172: Vehicles | E172: Patrol Vehicle | F172: 42000 | G172: 2 | H172: 84000
A173: 510592 | B173: John Stith | C173: Lawrenceville | D173: Vehicles | E173: 2022 Chevrolet Tahoe PPV | F173: 41909 | G173: 2 | H173: 83818
A174: 510073 | B174: Jeffrey Dinger | C174: Giles | D174: Communications Equipment | E174: KA-500 Kairos Repeaters | F174: 3800 | G174: 22 | H174: 83600
A175: 509450 | B175: Taylor Fischer | C175: Lexington | D175: Vehicle Accessories | E175: Mobile Command Center - Vehicle | F175: 41767.5 | G175: 2 | H175: 83535
A176: 510285 | B176: A. Aronhalt | C176: Ashland | D176: Surveillance | E176: Pole Camera with Analytic Software | F176: 82775 | G176: 1 | H176: 82775
A177: 509474 | B177: David Shaw | C177: Waynesboro | D177: Vehicles | E177: Police Vehicle Equipment | F177: 16471.75 | G177: 5 | H177: 82358.75
A178: 509348 | B178: Brian Seal | C178: Westmoreland | D178: Surveillance | E178: Avigilon Camera | F178: 11714.29 | G178: 7 | H178: 82000
A179: 509376 | B179: Courtney Lafkin-Coffman | C179: Page | D179: Vehicles | E179: Crime Prevention/Patrol & Criminal Investigations Vehicle - Pick-Up Truck/SUV | F179: 41000 | G179: 2 | H179: 82000
A180: 510810 | B180: Brian Seal | C180: Westmoreland | D180: Surveillance | E180: Avigilon Camera | F180: 11714.29 | G180: 7 | H180: 82000
A181: 510110 | B181: Michael Hatfield | C181: Buchanan County | D181: Body Armor | E181: Tac - Helmets with Radio communication STARS Compatible | F181: 81897 | G181: 1 | H181: 81897
A182: 509143 | B182: Donald Penland | C182: Lunenburg | D182: Vehicle Accessories | E182: Eyewitness In-Car Camera System for Fleet | F182: 80706 | G182: 1 | H182: 80706
A183: 509453 | B183: Chad Wickline | C183: Clifton Forge | D183: Vehicle Accessories | E183: In Car Camera System | F183: 11450 | G183: 7 | H183: 80150
A184: 509312 | B184: Joel Hash | C184: Wytheville | D184: Vehicles | E184: Standard Law Enforcement Vehicle | F184: 40000 | G184: 2 | H184: 80000
A185: 510147 | B185: Ronda Wiggins | C185: Prince William | D185: Surveillance | E185: Package Scanner for Commissary and Agency Packages | F185: 80000 | G185: 1 | H185: 80000
A186: 509820 | B186: Jeremiah Templeton | C186: Nelson | D186: Firearms | E186: Patrol rifle with peripherals | F186: 2665 | G186: 30 | H186: 79950
A187: 509490 | B187: Anthony Reynolds | C187: Russell | D187: Vehicles | E187: 2023 Ford Police Interceptor Utility AWD | F187: 39661 | G187: 2 | H187: 79322
A188: 510287 | B188: Michael Brown | C188: Cedar Bluff | D188: Vehicles | E188: 2023 Police Rated Ford Explorer | F188: 39543.6 | G188: 2 | H188: 79087.2
A189: 509084 | B189: William Balderson | C189: King & Queen | D189: Tasers & Taser Accessories | E189: Taser 7 Certification Bundle | F189: 3163 | G189: 25 | H189: 79075
A190: 510064 | B190: Jason Ryman | C190: Front Royal | D190: Vehicles | E190: Mini-Van | F190: 39275 | G190: 2 | H190: 78550
A191: 509957 | B191: Concetta Shipp | C191: Loudoun | D191: Evidence Collection / Detective | E191: FARO Focus Premium | F191: 78534.52 | G191: 1 | H191: 78534.52
A192: 509359 | B192: Melissa Tharpe | C192: Charlotte | D192: Vehicles | E192: Patrol Vehicles | F192: 39134.3 | G192: 2 | H192: 78268.6
A193: 509609 | B193: Dennis Ownby | C193: Cumberland | D193: Vehicles | E193: Ford Police Interceptor Utility Patrol Vehicle | F193: 39045 | G193: 2 | H193: 78090
A194: 510285 | B194: A. Aronhalt | C194: Ashland | D194: Vehicles | E194: Marked Police Vehicle | F194: 39000 | G194: 2 | H194: 78000
A195: 509957 | B195: Concetta Shipp | C195: Loudoun | D195: Evidence Collection / Detective | E195: FSIS II Color Lab System | F195: 77408.87 | G195: 1 | H195: 77408.87
A196: 508983 | B196: Donald Owens | C196: Fredericksburg | D196: Evidence Collection / Detective | E196: Laser Scanner | F196: 76914 | G196: 1 | H196: 76914
A197: 510029 | B197: John Austin | C197: Bristol | D197: Vehicle Accessories | E197: Emergency Lighting, console, protective cage | F197: 9589.99 | G197: 8 | H197: 76719.92
A198: 509072 | B198: Glen Arrington | C198: Gordonsville | D198: Vehicles | E198: Ford Police Interceptor Utility AWD (K8A) | F198: 38308.2 | G198: 2 | H198: 76616.4
A199: 509483 | B199: Aleck Beeman | C199: Frederick | D199: Evidence Collection / Detective | E199: ForenScope Crime Scene bundle | F199: 76585 | G199: 1 | H199: 76585
A200: 510467 | B200: Christopher Smith | C200: Westmoreland | D200: Evidence Collection / Detective | E200: ForenScope Crime Scene Bundle #6 (Alternate Light Source Camera and Evidence Collection) | F200: 76585 | G200: 1 | H200: 76585
... 2815 more rows

Sheet Contact Record (hidden)
A1: Agency | B1: Category | C1: ID | D1: Benificiary Name | E1: Email | F1: Contact Title | G1: Contact Firstname | H1: Contact MI | I1: Contact Lastname | J1: Address | K1: City | L1: State | M1: Zip | N1: Phone | O1: Fax | P1: Web | Q1: Allocation | AB1: status dropdown
A2: Abingdon Police Department | B2: Police Dept. | C2: 509578 | D2: Abingdon Town | E2: jholbrook@abingdon-va.gov | F2: Chief | G2: Jonathan | I2: Holbrook | J2: PO Box 1326 | K2: Abingdon | L2: VA | M2: 24212 | N2: 2766283111 | O2: 2766761136 | P2: www.abingdon-va.gov | Q2: 98000 | AB2: Voicemail
A3: Accomack County Sheriff's Office | B3: Sheriff's Office | C3: 509521 | D3: Accomack County | E3: wwessells@co.accomack.va.us | F3: Sheriff | G3: W. Todd | I3: Wessells | J3: 23323 Wise Court, P. O. Box 149 | K3: Accomac | L3: VA | M3: 23301 | N3: 7577871131 | O3: 7577872310 | P3: www.co.accomack.va.us/government/constitutional-officers/sheriff | Q3: 427000 | AB3: Missing Contact
A4: Albemarle - Charlottesville Regional Jail | B4: Regional Jail | C4: 509813 | D4: Albemarle - Charlottesville Regional Jail | E4: brillj@acrj.org | F4: Business Manager | G4: Jeff | I4: Brill | N4: 8049776981 | Q4: 118000 | AB4: Aware of Grant and Intending to Submit
A5: Albemarle County Police Department | B5: Police Dept. | C5: UNSUBMITTED | D5: Albemarle County | E5: reevess@albemarle.org | F5: Chief | G5: Sean | H5: A | I5: Reeves | J5: 1600 5th Street, Suite D | K5: Charlottesville | L5: VA | M5: 229024596 | N5: 4349724070 | O5: 4349724061 | P5: www.albemarle.org/police | Q5: 222000 | AB5: Not Called
A6: Alberta Police Department | B6: Police Dept. | C6: 510815 | D6: Alberta Town | E6: apd064@gmail.com | F6: Acting Chief | G6: Michael | H6: A | I6: Brown | J6: P.O. Box 157 | K6: Alberta | L6: VA | M6: 23821 | N6: 4349497443 | O6: 4349497443 | Q6: 10000
A7: Alexandria Police Department | B7: Police Dept. | C7: 510513 | D7: Alexandria City | E7: Don.hayes@alexandriava.gov | F7: Acting Chief | G7: Don | I7: Hayes | J7: 3600 Wheeler Ave. | K7: Alexandria | L7: VA | M7: 22304 | N7: 7037466704 | P7: ci.alexandria.va.us/police | Q7: 309000
A8: Alleghany County Sheriff`s Office | B8: Sheriff's Office | C8: 510174 | D8: Alleghany County | E8: kevin.hall@co.alleghany.va.us | F8: Sheriff | G8: Kevin | H8: W | I8: Hall | J8: 268 W. Main Street | K8: Covington | L8: VA | M8: 24426 | N8: 5409651770 | O8: 5409654915 | P8: www.alleghanysheriff.us | Q8: 415000
A9: Altavista Police Department | B9: Police Dept. | C9: 509460 | D9: Altavista Town | E9: temerricks@altavistava.gov | F9: Chief | G9: Thomas | I9: Merricks | J9: P.O. Box 420 | K9: Altavista | L9: VA | M9: 24517 | N9: 4343697425 | O9: 4343695046 | P9: www.altavistava.gov | Q9: 213000
A10: Amelia County Sheriff's Office | B10: Sheriff's Office | C10: 509260 | D10: Amelia County | E10: rlwalker@ameliasheriff.org | F10: Sheriff | G10: Ricky | H10: L | I10: Walker | J10: 16441 Court St., P.O. Box 463 | K10: Amelia | L10: VA | M10: 23002 | N10: 8045612118 | O10: 8045612269 | Q10: 263000
A11: Amherst County Sheriff's Office | B11: Sheriff's Office | C11: 509748 | D11: Amherst County | E11: ewviar@amherstsheriff.org | F11: Sheriff | G11: Ernest | H11: W | I11: Viar Jr. | J11: P.O. Box 410 | K11: Amherst | L11: VA | M11: 24521 | N11: 4349469381 | O11: 4349469380 | P11: www.amherstsheriff.org | Q11: 279000
A12: Amherst Police Department | B12: Police Dept. | C12: 510035 | D12: Amherst Town | E12: bobby.shiflett@amherstva.gov | F12: Chief | G12: Robert | H12: A | I12: Shiflett | J12: 174 S. Main Street, P.O. Box 280 | K12: Amherst | L12: VA | M12: 24521 | N12: 4349467885 | O12: 4349462087 | Q12: 92000
A13: Appomattox County Sheriff`s Office | B13: Sheriff's Office | C13: 509753 | D13: Appomattox County | E13: donald.simpson@appomattoxcountyva.gov | F13: Sheriff | G13: Donald | H13: D | I13: Simpson | J13: P.O. Box 366 | K13: Appomattox | L13: VA | M13: 24522 | N13: 4343528241 | O13: 4343520445 | Q13: 266000
A14: Ashland Police Department | B14: Police Dept. | C14: 510285 | D14: Ashland Town | E14: taronhalt@ashlandpolice.us | F14: Chief | G14: Alexis | H14: T | I14: Aronhalt | J14: 601 England St. P O Box 1600 | K14: Ashland | L14: VA | M14: 23005 | N14: 8047981227 | O14: 8047988739 | P14: www.ashlandpolice.us | Q14: 158000
A15: Augusta County Sheriff's Office | B15: Sheriff's Office | C15: 509289 | D15: Augusta County | E15: dsmith@co.augusta.va.us | F15: Sheriff | G15: Donald | H15: L | I15: Smith | J15: P. O. Box 860 | K15: Verona | L15: VA | M15: 24482 | N15: 5402455333 | O15: 5402455330 | P15: www.co.augusta.va.us/sheriff | Q15: 267000
A16: Bath County Sheriff's Office | B16: Sheriff's Office | C16: 509755 | D16: Bath County | E16: baso@tds.net | F16: Sheriff | G16: Robert | H16: W | I16: Plecker | J16: P.O. Box 218 | K16: Warm Springs | L16: VA | M16: 24484 | N16: 5408392375 | O16: 5408393344 | Q16: 154000
A17: Bedford County Sheriff's Office | B17: Sheriff's Office | C17: 509968 | D17: Bedford County | E17: mmiller@bedfordsheriff.org | F17: Sheriff | G17: Mike | H17: W | I17: Miller | J17: 1345 Falling Creek Road | K17: Bedford | L17: VA | M17: 245232230 | N17: 5405864800 | O17: 5405869100 | P17: www.co.bedford.va.us/Res/Sheriff | Q17: 263000
A18: Bedford Police Department | B18: Police Dept. | C18: 510195 | D18: Bedford Town | E18: rlewis@bedfordva.gov | F18: Chief | G18: Ronnie | H18: E | I18: Lewis Jr. | J18: 215 E Main Street | K18: Bedford | L18: VA | M18: 24523 | N18: 5405876011 | O18: 5405867198 | P18: police@bedfordva.gov | Q18: 157000
A19: Berryville Police Department | B19: Police Dept. | C19: 510387 | D19: Berryville Town | E19: chiefofpolice@berryvilleva.gov | F19: Chief | G19: Neal | I19: White | J19: 101 Chalmers Ct Suite A | K19: Berryville | L19: VA | M19: 22611 | N19: 5409553863 | O19: 5409550207 | P19: www.berryvilleva.gov | Q19: 55000
A20: Big Stone Gap Police Department | B20: Police Dept. | C20: 510422 | D20: Big Stone Gap Town | E20: shamm@bigstonegap.org | F20: Chief | G20: John | H20: S | I20: Hamm | J20: 505 E. 5th St., South | K20: Big Stone Gap | L20: VA | M20: 24219 | N20: 2765230117 | O20: 2765232794 | Q20: 155000
A21: Blacksburg Police Department | B21: Police Dept. | C21: 509347 | D21: Blacksburg Town | E21: tbrewster@blacksburg.gov | F21: Chief | G21: Kendrick | H21: T | I21: Brewster | J21: 200 Clay St. SW. | K21: Blacksburg | L21: VA | M21: 24060 | N21: 5404431401 | O21: 5405528456 | P21: www.blacksburg.gov | Q21: 255000
A22: Blackstone Police Department | B22: Police Dept. | C22: 509114 | D22: Blackstone Town | E22: chiefnck@blackstonevapd.org | F22: Chief | G22: Nicholas | H22: C | I22: Kuzmiak | J22: 101 W. Elm St. | K22: Blackstone | L22: VA | M22: 23824 | N22: 4342921485 | O22: 4342980209 | P22: www.blackstonevapd.org | Q22: 153000
A23: Bland County Sheriff's Office | B23: Sheriff's Office | C23: 510017 | D23: Bland County | E23: jramsey@bland.org | F23: Appointed Sheriff | G23: Jason | H23: R | I23: Ramsey | J23: P O Box 449, 612 Main St. Suite 203 | K23: Bland | L23: VA | M23: 24315 | N23: 2766884311 | O23: 2766883124 | P23: www.bland.org | Q23: 196000
A24: Bloxom Police Department | B24: Police Dept. | C24: 510471 | D24: Bloxom Town | E24: bloxompdcar70@gmail.com | F24: Chief | G24: Bryan | I24: Tittermary | J24: P O Box 217 | K24: Bloxom | L24: VA | M24: 23308 | N24: 7579994809 | Q24: 10000
A25: Blue Ridge Community College Pd | B25: Higher Ed. | C25: UNSUBMITTED | D25: Blue Ridge Community College Pd | E25: walkerm@brcc.edu | N25: 5404532503 | P25: https://www.brcc.edu/directory/public-safety.html | Q25: 18000
A26: Blue Ridge Regional Jail Authority | B26: Regional Jail | C26: 510237 | D26: Blue Ridge Regional Jail Authority | E26: clipscomb@brrja.state.va.us | F26: Admin | G26: Chad | I26: Lipscomb | N26: (434) 847-3100 | Q26: 305500
A27: Bluefield Police Department | B27: Police Dept. | C27: 509504 | D27: Bluefield Town | E27: gunter@bluefieldva.org | F27: Chief | G27: Michael | H27: S | I27: Gunter | J27: P.O. Box 1026 | K27: Bluefield | L27: VA | M27: 24605 | N27: 2763266710 | O27: 2763262608 | Q27: 155000
A28: Boones Mill Police Department | B28: Police Dept. | C28: 509164 | D28: Boones Mill Town | G28: Beverly | I28: Fitzpatrick | Q28: 10000
A29: Botetourt County Sheriff`s Office | B29: Sheriff's Office | C29: 509167 | D29: Botetourt County | E29: MWard@botetourtva.gov | F29: Sheriff | G29: Matthew | H29: T | I29: Ward | J29: 205 North Roanoke St., P.O. Box 18 | K29: Fincastle | L29: VA | M29: 24090 | N29: 5404738230 | O29: 5404732263 | P29: www.botetourtsheriff.org | Q29: 164000
A30: Bowling Green Police Department | B30: Police Dept. | C30: 510509 | D30: Bowling Green Town | E30: jcecil@townofbowlinggreen.com | F30: Chief | G30: Justin | I30: Cecil | J30: P.O. Box 468 | K30: Bowling Green | L30: VA | M30: 22427 | N30: 8049944056 | O30: 8046321048 | Q30: 10000
A31: Boydton Police Department | B31: Police Dept. | C31: 510115 | D31: Boydton Town | E31: sbowen@boydton.org | G31: Shirley | I31: Bowen | N31: 4347386344 | Q31: 10000
A32: Boykins Police Department | B32: Police Dept. | C32: 509568 | D32: Boykins Town | E32: police@townofboykinsva.com | F32: Town Sergeant | G32: George | H32: R | I32: Brozzo | J32: 18206 Virginia Ave | K32: Boykins | L32: VA | M32: 23827 | N32: 7575562709 | O32: 7576546361 | Q32: 10000
A33: Bridgewater College Police Department | B33: Higher Ed. | C33: 510293 | D33: Bridgewater College Police Department | E33: mfranklin@bridgewater.edu | F33: Chief | G33: Milton | I33: Franklin | N33: (540) 828-5761 | Q33: 36000
A34: Bridgewater Police Department | B34: Police Dept. | C34: 508998 | D34: Bridgewater Town | E34: pread@bridgewater.town | F34: Chief | G34: Phillip | H34: A | I34: Read | J34: 201 Green Street/P.O. Box 94 | K34: Bridgewater | L34: VA | M34: 22812 | N34: 5408282611 | O34: 5408280136 | Q34: 57000
A35: Bristol Police Department | B35: Police Dept. | C35: 510029 | D35: Bristol City | E35: bvacop@bristolva.org | F35: Chief | G35: John | I35: Austin | J35: 501 Scott Street | K35: Bristol | L35: VA | M35: 24201 | N35: 2766457400 | O35: 2766453797 | P35: www.bristolva.org/police | Q35: 477000
A36: Broadway Police Department | B36: Police Dept. | C36: 509136 | D36: Broadway Town | E36: dmiller@town.broadway.va.us | F36: Chief | G36: Douglas | H36: L | I36: Miller Jr | J36: P. O. Box 156 | K36: Broadway | L36: VA | M36: 22815 | N36: 5408961174 | O36: 5408962011 | Q36: 94000
A37: Brookneal Police Department | B37: Police Dept. | C37: 509784 | D37: Brookneal Town | E37: chiefkolich@townofbrookneal.com | F37: Chief | G37: Robert | I37: Kolich, III | J37: P.O. Box 450 | K37: Brookneal | L37: VA | M37: 24528 | N37: 4343762650 | O37: 4343761210 | P37: chiefkolich@townofbrookneal.com | Q37: 10000
A38: Brunswick County Sheriff`s Office | B38: Sheriff's Office | C38: 509375 | D38: Brunswick County | E38: broberts@brunswickso.org | F38: Sheriff | G38: Brian | H38: K | I38: Roberts | J38: 120 East Hicks Street, P O Box 705 | K38: Lawrenceville | L38: VA | M38: 23868 | N38: 4348483133 | O38: 4348484635 | P38: www.brunswickso.org | Q38: 205000
A39: Buchanan County Sheriff's Office | B39: Sheriff's Office | C39: 510110 | D39: Buchanan County | E39: john.mcclanahan@bcso-va.org | F39: Sheriff | G39: John | H39: C | I39: Mcclanahan | J39: 1327 Lovers Gap Road | K39: Vansant | L39: VA | M39: 24656 | N39: 2769352056 | O39: 2769352777 | P39: Buchanan Sheriff's Office | Q39: 629000
A40: Buckingham County Sheriff`s Office | B40: Sheriff's Office | C40: 510667 | D40: Buckingham County | E40: bkidd@buckinghamcounty.virginia.gov | F40: Sheriff | G40: W. "Billy" | H40: G | I40: Kidd, Jr. | J40: P.O. Box 50 | K40: Buckingham | L40: VA | M40: 23921 | N40: 4349691772 | O40: 4349692104 | P40: www.buckinghamcountyva.org/sheriff.html | Q40: 267000
A41: Buena Vista Police Department | B41: Police Dept. | C41: 509431 | D41: Buena Vista City | E41: dclements@bvcity.org | F41: Interim Chief | G41: Dave | H41: K | I41: Clements | J41: 306 Park Avenue | K41: Buena Vista | L41: VA | M41: 24416 | N41: 5404611315 | O41: 5402619505 | P41: www.buenavistavirginia.org | Q41: 407000
A42: Burkeville Police Department | B42: Police Dept. | C42: 508908 | D42: Burkeville Town | E42: jherlong1@gmail.com | F42: Chief | G42: Jake | I42: Herlong | J42: 204 2nd St North West | K42: Burkeville | L42: VA | M42: 23922 | N42: 4347674095 | O42: 4347672652 | P42: jherlong1@gmail.com | Q42: 10000
A43: Campbell County Sheriff's Office | B43: Sheriff's Office | C43: 510186 | D43: Campbell County | E43: wwclark@co.campbell.va.us | F43: Sheriff | G43: Whit | H43: W | I43: Clark, III | J43: P.O. Box 280 | K43: Rustburg | L43: VA | M43: 245880280 | N43: 4343329580 | O43: 4343322710 | Q43: 301000
A44: Cape Charles Police Department | B44: Police Dept. | C44: 510466 | D44: Cape Charles Town | E44: jpruitt@capecharles.org | F44: Chief | G44: James | H44: W | I44: Pruitt | J44: 2 Plum Street, 1st floor | K44: Cape Charles | L44: VA | M44: 23310 | N44: (757) 331-3096 | O44: 7573311817 | P44: www.capecharles.org | Q44: 91000
A45: Caroline County Sheriff's Office | B45: Sheriff's Office | C45: 510447 | D45: Caroline County | E45: smoser@carolinesheriff.org | F45: Sheriff | G45: C. "Scott" | H45: S | I45: Moser | J45: P.O. Box 39 | K45: Bowling Green | L45: VA | M45: 224270039 | N45: 8046331122 | O45: 8046331124 | P45: www.carolinesheriff.org | Q45: 220000
A46: Carroll County Sheriff's Office | B46: Sheriff's Office | C46: 510281 | D46: Carroll County | E46: kevin.kemp@carrollcountyva.gov | F46: Sheriff | G46: Kevin | H46: A | I46: Kemp | J46: P.O. Box 575 | K46: Hillsville | L46: VA | M46: 24343 | N46: 2767284146 | O46: 2767289992 | P46: www.carrollcountyva.org/sheriff | Q46: 336000
A47: Cedar Bluff Police Department | B47: Police Dept. | C47: 510287 | D47: Cedar Bluff Town | E47: cedarbluffchief@gmail.com | F47: Chief | G47: Mike | H47: D | I47: Brown | J47: P.O. Box 807 | K47: Cedar Bluff | L47: VA | M47: 246090807 | N47: 2769644889 | O47: 2769642045 | Q47: 111000
A48: Central Virginia Community College Pd | B48: Higher Ed. | C48: 510511 | D48: Central Virginia Community College Pd | E48: WilkersonW@centralvirginia.edu | F48: Chief | G48: William | I48: Wilkerson | N48: (434) 832-7700 | Q48: 33000
A49: Central Virginia Regional Jail | B49: Regional Jail | C49: UNSUBMITTED | D49: Central Virginia Regional Jail | E49: fdyer@cvrj.org | F49: Finance | G49: Shannon | N49: 5406723222 | P49: http://cvrj.org/central_virginia_regional_jail1.13.2020_013.htm | Q49: 143500
A50: Charles City County Sheriff`s Office | B50: Sheriff's Office | C50: 510808 | D50: Charles City County | E50: ajones@ccsolaw.us | F50: Sheriff | G50: Alan | H50: M | I50: Jones, Sr. | J50: P.O. Box 87 | K50: Charles City | L50: VA | M50: 23030 | N50: 8048299265 | O50: 8048292514 | Q50: 257000
A51: Charlotte County Sheriff`s Office | B51: Sheriff's Office | C51: 509359 | D51: Charlotte County | E51: rsfreeman@cchsheriff.com | F51: Sheriff | G51: Royal | H51: S | I51: Freeman | J51: 222 Law Lane | K51: Charlotte Court House | L51: VA | M51: 23923 | N51: 4345425141 | O51: 4345425100 | Q51: 322000
A52: Charlottesville Police Department | B52: Police Dept. | C52: 509789 | D52: Charlottesville City | E52: kochism@charlottesville.gov | F52: Chief | G52: Michael | H52: P | I52: Kochis | J52: 606 E. Market St. | K52: Charlottesville | L52: VA | M52: 229020000 | N52: 4349703952 | O52: 4349703502 | P52: www.charlottesville.org/police | Q52: 447000
A53: Chase City Police Department | B53: Police Dept. | C53: 510122 | D53: Chase City Town | E53: secretary.ccpd@gmail.com | F53: Chief | G53: Job | H53: A | I53: Jordan | J53: 219 E. Second St. | K53: Chase City | L53: VA | M53: 23924 | N53: 4343725112 | O53: 4343725246 | P53: - | Q53: 212000
A54: Chatham Police Department | B54: Police Dept. | C54: 509979 | D54: Chatham Town | E54: chiefrlawsoncpd@chatham-va.gov | F54: Chief | G54: Randy | H54: L | I54: Lawson | J54: 16 Court Place, P O Box 370 | K54: Chatham | L54: VA | M54: 24531 | N54: 4344328153 | O54: 4344324817 | Q54: 91000
A55: Chesterfield County Police Department | B55: Police Dept. | C55: 509833 | D55: Chesterfield County | E55: WyrickT@chesterfield.gov | F55: Chief | G55: Jeffrey | H55: S | I55: Katz | J55: P. O. Box 148 | K55: Chesterfield | L55: VA | M55: 23832 | N55: 8047481266 | O55: 8047481239 | P55: chesterfield.gov/PublicSafety/police/pol_home.htm | Q55: 555000
A56: Chilhowie Police Department | B56: Police Dept. | C56: 509210 | D56: Chilhowie Town | E56: amoss@chilhowie.org | F56: Chief | G56: Andrew | H56: K | I56: Moss | J56: P O Box 5012 | K56: Chilhowie | L56: VA | M56: 24319 | N56: 2766463232 | O56: 2766464094 | Q56: 152000
A57: Chincoteague Police Department | B57: Police Dept. | C57: 508914 | D57: Chincoteague Town | E57: rfisher@chincoteague-va.gov | F57: Chief | G57: Robley | H57: K | I57: Fisher | J57: 6150 Community Drive | K57: Chincoteague Island | L57: VA | M57: 23336 | N57: 7573363155 | O57: 7573366970 | P57: www.chincoteague-va.gov/citizens/law-enforcement | Q57: 93000
A58: Christiansburg Police Department | B58: Police Dept. | C58: 509518 | D58: Christiansburg Town | E58: msisson@christiansburg.org | F58: Chief | G58: Mark | H58: A | I58: Sisson | J58: 10 East Main Street | K58: Christiansburg | L58: VA | M58: 24073 | N58: 5403823131 | O58: 5403821527 | P58: www.christiansburg.org/police | Q58: 173000
A59: Christopher Newport University Pd | B59: Higher Ed. | C59: 509472 | D59: Christopher Newport University Pd | E59: daniel.woloszynowski@cnu.edu | Q59: 75000
A60: Clarke County Sheriff's Office | B60: Sheriff's Office | C60: 510584 | D60: Clarke County | E60: troper@clarkecounty.gov | F60: Sheriff | G60: Anthony "Tony" | H60: W | I60: Roper | J60: 100 North Church Street | K60: Berryville | L60: VA | M60: 22611 | N60: 5409551234 | O60: 5409554111 | Q60: 100000
A61: Clarksville Police Department | B61: Police Dept. | C61: 510668 | D61: Clarksville Town | E61: rwilkinson.cpd@clarksvilleva.org | F61: Chief | G61: Ricky | H61: E | I61: Wilkinson | J61: P.O. Box 1147 | K61: Clarksville | L61: VA | M61: 23927 | N61: 4343745743 | O61: 4343749082 | Q61: 111000
A62: Clifton Forge Police Department | B62: Police Dept. | C62: 509453 | D62: Clifton Forge Town | E62: cwickline@cliftonforgeva.gov | F62: Chief | G62: Chad | H62: D | I62: Wickline | J62: 547 Main St. | K62: Clifton Forge | L62: VA | M62: 24422 | N62: 5408632513 | O62: 5408632537 | Q62: 214000
A63: Clinchco Police Department | B63: Police Dept. | C63: 510348 | D63: Clinchco Town | E63: rthacker@dc911.org | F63: Chief | G63: Richard | H63: A | I63: Thacker | J63: 156 Main Street, P. O. Box 357 | K63: Clinchco | L63: VA | M63: 24226 | N63: 2768351160 | O63: 2768359420 | Q63: 10000
A64: Clintwood Police Department | B64: Police Dept. | C64: 510098 | D64: Clintwood Town | E64: policedept1@verizon.net | F64: Chief | G64: Ricky | H64: G | I64: Mullins | J64: P O Box 647 | K64: Clintwood | L64: VA | M64: 24228 | N64: 2769268710 | O64: 2769264013 | Q64: 111000
A65: Coeburn Police Department | B65: Police Dept. | C65: 510445 | D65: Coeburn Town | E65: sbrooks@townofcoeburn.com | F65: Chief | G65: Scott | H65: A | I65: Brooks | J65: P.O. Box 370 | K65: Coeburn | L65: VA | M65: 24230 | N65: 2763952111 | O65: 2763957240 | Q65: 212000
A66: College Of William & Mary Campus Pd | B66: Higher Ed. | C66: 510280 | D66: College Of William & Mary Campus Pd | E66: dcheesebro@wm.edu | Q66: 84000
A67: Colonial Beach Police Department | B67: Police Dept. | C67: 510784 | D67: Colonial Beach Town | E67: gdeaver@colonialbeachva.net | F67: Chief | G67: Gregory | H67: W | I67: Deaver | J67: 419 B Colonial Ave | K67: Colonial Beach | L67: VA | M67: 22443 | N67: 8042247612 | O67: 8042248216 | P67: unkown | Q67: 214000
A68: Colonial Heights Police Department | B68: Police Dept. | C68: 508975 | D68: Colonial Heights City | E68: anspachw@colonialheightsva.gov | F68: Colonel | G68: William | H68: H | I68: Anspach | J68: 100 A Highland Avenue, PO Box 3401 | K68: Colonial Heights | L68: VA | M68: 23834 | N68: 8045209311 | O68: 8045209265 | P68: www.colonial-heights.com/Police.htm | Q68: 418000
A69: Courtland Police Department | B69: Police Dept. | C69: WITHDRAWN | D69: Courtland Town | E69: courtland.townofc@verizon.net | F69: Town Sergeant | G69: Hunter | H69: K | I69: Story | J69: P.O. Box 39 | K69: Courtland | L69: VA | M69: 238370000 | N69: 7576532222 | Q69: 10000
A70: Covington Police Department | B70: Police Dept. | C70: 509894 | D70: Covington City | E70: csmith@covington.va.us | F70: Chief Of Police | G70: Christopher | H70: J | I70: Smith | J70: 333 W. Locust Street | K70: Covington | L70: VA | M70: 24426 | N70: 5409656336 | O70: 5409656334 | P70: www.covington.va.us | Q70: 366000
A71: Craig County Sheriff's Office | B71: Sheriff's Office | C71: 509005 | D71: Craig County | E71: craigsheriff@craigcountyva.gov | F71: Sheriff | G71: Lloyd Trevor | H71: N | I71: Craddock | J71: P.O. Box 266 | K71: New Castle | L71: VA | M71: 24127 | N71: 5408645127 | O71: 5408645129 | P71: www.craigcosheriffva.us | Q71: 195000
A72: Crewe Police Department | B72: Police Dept. | C72: 508934 | D72: Crewe Town | E72: pmorgan@crewevapd.us | F72: Chief | G72: James "Phil" | I72: Morgan | J72: 125 E. Carolina Ave | K72: Crewe | L72: VA | M72: 23930 | N72: 4346457472 | O72: 4345380527 | P72: https://crewevapd.us | Q72: 362000
A73: Culpeper County Sheriff's Office | B73: Sheriff's Office | C73: 509047 | D73: Culpeper County | E73: sjenkins@culpepercounty.gov | F73: Sheriff | G73: Scott | H73: H | I73: Jenkins | J73: 14023 Public Safety Ct | K73: Culpeper | L73: VA | M73: 22701 | N73: 5407277520 | O73: 5407273466 | P73: www.culpepersheriffsoffice.com | Q73: 182000
A74: Culpeper Police Department | B74: Police Dept. | C74: 509505 | D74: Culpeper Town | E74: csettle@culpeperva.gov | F74: Acting Chief | G74: Christopher | I74: Settle | J74: 740 Old Brandy Road | K74: Culpeper | L74: VA | M74: 22701 | N74: 5407273430 | O74: 5407277528 | P74: unk | Q74: 130000
A75: Cumberland County Sheriff`s Office | B75: Sheriff's Office | C75: 509609 | D75: Cumberland County | E75: dhodges@cumberlandcounty.virginia.gov | F75: Sheriff | G75: Darrell | H75: L | I75: Hodges | J75: P.O. Box 71 | K75: Cumberland | L75: VA | M75: 23040 | N75: 8044924120 | O75: 8044925811 | P75: www.cumberlandcounty.virginia.gov/sheriff/index.html | Q75: 260000
A76: Damascus Police Department | B76: Police Dept. | C76: 509154 | D76: Damascus Town | E76: kermit.turner@damascuspolice.com | F76: Chief | G76: Kermit | H76: W | I76: Turner | J76: 208 West Laurel Avenue | K76: Damascus | L76: VA | M76: 24236 | N76: 2764753341 | O76: 2764753339 | P76: www.damascus.org/police.html | Q76: 10000
A77: Danville Adult Detention Center | B77: Regional Jail | C77: 510525 | D77: Danville Adult Detention Center | E77: mardafe@ci.danville.va.us | N77: 4347995233 | P77: https://www.danville-va.gov/291/Adult-Detention | Q77: 61000
A78: Dayton Police Department | B78: Police Dept. | C78: 509076 | D78: Dayton Town | E78: jtrout@daytonva.us | F78: Acting Chief | G78: Justin | I78: Trout | J78: 125 A E. View St. | K78: Dayton | L78: VA | M78: 228219709 | N78: 5408792161 | O78: 5408792267 | Q78: 52000
A79: Dickenson County Sheriff`s Office | B79: Sheriff's Office | C79: 509352 | D79: Dickenson County | E79: jfleming@sheriff.dc911.org | F79: Sheriff | G79: Jeremy | H79: D | I79: Fleming | J79: P.O. Box 339, Main Street | K79: Clintwood | L79: VA | M79: 24228 | N79: 2769261600 | O79: 2769261606 | P79: www.dickensonctyva.com/html/sheriffs_office.html | Q79: 622000
A80: Dinwiddie County Sheriff`s Office | B80: Sheriff's Office | C80: 509314 | D80: Dinwiddie County | E80: dadams@dinwiddieva.us | F80: Sheriff | G80: Donald | H80: T | I80: Adams | J80: 13850 Courthouse Road | K80: Dinwiddie | L80: VA | M80: 23841 | N80: 8044694550 | O80: 8044694854 | P80: www.dinwiddie.va.us | Q80: 218000
A81: Drakes Branch Police Department | B81: Police Dept. | C81: 510031 | D81: Drakes Branch Town | E81: drakesbranch17@gmail.com | G81: Charlie | I81: Brinkley | Q81: 10000
A82: Dublin Police Department | B82: Police Dept. | C82: 510315 | D82: Dublin Town | E82: dlambert@dublinpd.org | F82: Chief | G82: Dennis | H82: R | I82: Lambert | J82: P.O. Box 1066 | K82: Dublin | L82: VA | M82: 24084 | N82: 5406745167 | O82: 5406744799 | P82: www.dublinpd.org | Q82: 213000
A83: Dumfries Police Department | B83: Police Dept. | C83: 509958 | D83: Dumfries Town | E83: vgalyen@dumfriesva.gov | F83: Chief | G83: Vernon | I83: Galyen | J83: 17755 Main Street | K83: Dumfries | L83: VA | M83: 22026 | N83: 7032211111 | O83: 7032211011 | P83: www.dumfriesva.gov | Q83: 96000
A84: Eastern Shore Community College Pd | B84: Higher Ed. | C84: 510443 | D84: Eastern Shore Community College Pd | E84: dbranch@es.vccs.edu | Q84: 21000
A85: Eastern Virginia Medical School Pd | B85: Higher Ed. | C85: 510252 | D85: Eastern Virginia Medical School Pd | E85: mitcheaj@evms.edu | Q85: 90000
A86: Eastville Police Department | B86: Police Dept. | C86: 510187 | D86: Eastville Town | E86: rstubbs@townofeastville.com | F86: Chief of Police | G86: Robert | I86: Stubbs | J86: P.O. Box 747 | K86: Eastville | L86: VA | M86: 23347 | N86: 7576785240 | O86: 7576785047 | P86: http://www.eastvillepd@esva.net | Q86: 10000
A87: Elkton Police Department | B87: Police Dept. | C87: 510291 | D87: Elkton Town | E87: chiefharris@townofelkton.com | F87: Chief | G87: David | H87: B | I87: Harris Sr | J87: 173 W. Spotswood Avenue | K87: Elkton | L87: VA | M87: 22827 | N87: 5402989441 | O87: 5402989499 | P87: elktonva.gov | Q87: 153000
A88: Emory & Henry College Police Department | B88: Higher Ed. | C88: 509112 | D88: Emory & Henry College Police Department | E88: jodell@ehc.edu | F88: Chief Of Police | G88: Jerry | H88: W | I88: O'Dell | J88: P.O. Box 947 | K88: Emory | L88: Virginia | M88: 24327 | N88: 276-944-6121 | P88: http://www.ehc.edu | Q88: 21000
A89: Essex County Sheriff`s Office | B89: Sheriff's Office | C89: 509182 | D89: Essex County | E89: wholmes@essex-virginia.org | F89: Sheriff | G89: Walter | H89: A | I89: Holmes | J89: P.O. Box 955 | K89: Tappahannock | L89: VA | M89: 22560 | N89: 8044433346 | O89: 8044433340 | Q89: 318000
A90: Exmore Police Department | B90: Police Dept. | C90: 509785 | D90: Exmore Town | E90: adimartino@exmore.org | F90: Chief | G90: Angelo | I90: Dimartino | J90: P. O. Box 647 | K90: Exmore | L90: VA | M90: 233500647 | N90: 7574425405 | O90: 7574424038 | Q90: 361000
A91: Fairfax City Police Department | B91: Police Dept. | C91: 510901 | D91: Fairfax City | E91: erin.schaible@fairfaxva.gov | F91: Colonel | G91: Erin | H91: F | I91: Schaible | J91: 3730 Old Lee Highway | K91: Fairfax | L91: VA | M91: 22030 | N91: 5712383613 | O91: 7032466303 | P91: fairfaxva.gov | Q91: 74000
A92: Fairfax County Police Department | B92: Police Dept. | C92: 509273 | D92: Fairfax County | E92: kevin.davis2@fairfaxcounty.gov | F92: Police Chief | G92: Kevin | H92: F | I92: Davis | J92: 12099 Government Center Parkway | K92: Fairfax | L92: VA | M92: 22035 | N92: 7032462327 | O92: 7032463876 | P92: www.fairfaxcounty.gov/police/ | Q92: 1000000
A93: Falls Church Police Department | B93: Police Dept. | C93: 510363 | D93: Falls Church City | E93: mgavin@fallschurchva.gov | F93: Chief | G93: Mary | H93: E | I93: Gavin | J93: 300 Park Ave | K93: Falls Church | L93: VA | M93: 22046 | N93: 7032485069 | O93: 7032485158 | P93: www.fallschurchva.gov/292/police | Q93: 65000
A94: Farmville Police Department | B94: Police Dept. | C94: 510130 | D94: Farmville Town | E94: aellington@farmvilleva.com | F94: Chief | G94: Andy | I94: Ellington | J94: P.O. Box 24 116 N. Main Street | K94: Farmville | L94: VA | M94: 23901 | N94: 4343922122 | O94: 4343929901 | Q94: 217000
A95: Fauquier County Sheriff's Office | B95: Sheriff's Office | C95: 509823 | D95: Fauquier County | E95: jeremy.falls@fauquiercounty.gov | F95: Sheriff | G95: Jeremy | H95: A | I95: Falls | J95: 78 West Lee Street | K95: Warrenton | L95: VA | M95: 20186 | N95: 5404228600 | O95: 5404228605 | P95: www.fauquiercounty.gov/government/departments-h-z/sheriff-s-office/ | Q95: 152000
A96: Ferrum College Police Department | B96: Higher Ed. | C96: UNSUBMITTED | D96: Ferrum College Police Department | E96: jfowens@ferrum.edu | N96: 5403654444 | Q96: 36000
A97: Floyd County Sheriff's Office | B97: Sheriff's Office | C97: 510290 | D97: Floyd County | E97: bcraig@floydcova.org | F97: Sheriff | G97: Brian | H97: J | I97: Craig | J97: 100 E. Main, Room 206 | K97: Floyd | L97: VA | M97: 24091 | N97: 5407459334 | O97: 5407459344 | Q97: 265000
A98: Fluvanna County Sheriff's Office | B98: Sheriff's Office | C98: 509723 | D98: Fluvanna County | E98: ehess@fluvannasheriff.com | F98: Sheriff | G98: Eric | I98: Hess | J98: 160 Commons Boulevard | K98: Palmyra | L98: VA | M98: 22963 | N98: 4345898211 | O98: 4345896594 | P98: www.fluvannasheriff.com | Q98: 177000
A99: Franklin Police Department | B99: Police Dept. | C99: 510365 | D99: Franklin City | E99: spatterson@franklinpolice.org | F99: Chief | G99: Steve | I99: Patterson | J99: 1018 Pretlow Street | K99: Franklin | L99: VA | M99: 23851 | N99: 7575628575 | O99: 7575620877 | P99: www.franklinva.com/police/police_default.htm | Q99: 318000
A100: Franklin County Sheriff's Office | B100: Sheriff's Office | C100: 509093 | D100: Franklin County | E100: bill.overton@franklincountyva.gov | F100: Sheriff | G100: William | H100: Q | I100: Overton, Jr. | J100: 70 E. Court St. Suite101 | K100: Rocky Mount | L100: VA | M100: 24151 | N100: 5404833000 | O100: 5404837757 | P100: sheriff.franklincountyva.org | Q100: 359000
A101: Frederick County Sheriff`s Office | B101: Sheriff's Office | C101: 509483 | D101: Frederick County | E101: lmillholland@fcva.us | F101: Sheriff | G101: Lenny | H101: W | I101: Millholland | J101: 1080 Coverstone Drive | K101: Winchester | L101: VA | M101: 22602 | N101: 5406626168 | O101: 5405046400 | P101: www.co.frederick.va.us/sheriff | Q101: 278000
A102: Fredericksburg Police Department | B102: Police Dept. | C102: 508983 | D102: Fredericksburg City | E102: blayton@pd.fredericksburgva.gov | F102: Interim Chief | G102: Bryan | I102: Layton | J102: 2200 Cowan Boulevard | K102: Fredericksburg | L102: VA | M102: 22401 | N102: 5403733122 | O102: 5403721108 | P102: www.fredericksburgva.gov/index.aspx?nid=428 | Q102: 578000
A103: Front Royal Police Department | B103: Police Dept. | C103: 510064 | D103: Front Royal Town | E103: kmagalis@frontroyalva.com | F103: Chief | G103: Kerry | I103: Magalis II | J103: 900 Monroe Avenue | K103: Front Royal | L103: VA | M103: 22630 | N103: 5406352111 | O103: 5406356160 | P103: www.frontroyalva.com | Q103: 165000
A104: Galax Police Department | B104: Police Dept. | C104: 509224 | D104: Galax City | E104: dcooper@galaxva.com | F104: Chief | G104: DeWitt | I104: Cooper | J104: 353 N Main Street | K104: Galax | L104: VA | M104: 24333 | N104: 2762368101 | O104: 2762362965 | P104: www.galaxva.com | Q104: 617000
A105: Gate City Police Department | B105: Police Dept. | C105: 510162 | D105: Gate City Town | E105: jmiller@mygatecity.com | F105: Chief | G105: Justin | H105: C | I105: Miller | J105: 156 East Jackson Street | K105: Gate City | L105: VA | M105: 24251 | N105: 2766853401 | O105: 2763867789 | Q105: 152000
A106: George Mason University Police Dept. | B106: Higher Ed. | C106: 510284 | D106: George Mason University Police Dept. | E106: crowan2@gmu.edu | G106: Keith | I106: Jochem | Q106: 147000
A107: Germanna Community College PD | B107: Higher Ed. | C107: 510459 | D107: Germanna Community College PD | E107: CBranch@germanna.edu | Q107: 21000
A108: Giles County Sheriff's Office | B108: Sheriff's Office | C108: 510073 | D108: Giles County | E108: mmillirons@gilessheriff.org | F108: Sheriff | G108: W. Morgan | I108: Millirons | J108: 1 Taylor Ave, Suite #3 | K108: Pearisburg | L108: VA | M108: 24134 | N108: 5409213842 | O108: 5409214976 | P108: www.gilessheriff.org | Q108: 260000
A109: Glade Spring Police Department | B109: Police Dept. | C109: 509933 | D109: Glade Spring Town | E109: jyonts@gladespringva.org | F109: Chief | G109: James | H109: W | I109: Yonts | J109: 228 West Glade Street | K109: Glade Spring | L109: VA | M109: 24340 | N109: 2764292333 | O109: 2764293149 | P109: - | Q109: 91000
A110: Glasgow Police Department | B110: Police Dept. | C110: UNSUBMITTED | D110: Glasgow Town | E110: ghayfield@glasgowvirginia.gov | G110: George | I110: Hayfield | J110: 1100 Blue Ridge Road | K110: Glasgow | L110: VA | M110: 24555 | N110: 5402582732 | O110: 5402581325 | P110: www.glasgowvirginia.org | Q110: 10000
A111: Glen Lyn Police Department | B111: Police Dept. | C111: REF GILES COUNTY | D111: Glen Lyn Town | E111: glenlynpolicedept@gmail.com | F111: Chief | G111: Douglas | H111: W | I111: Sadler | J111: P.O. Box 88 | K111: Glen Lyn | L111: VA | M111: 24093 | N111: 5407267075 | O111: 5407262188 | P111: - | Q111: 10000
A112: Gloucester County Sheriff`s Office | B112: Sheriff's Office | C112: 510027 | D112: Gloucester County | E112: dwarren@gloucesterva.info | F112: Sheriff | G112: Darrell | I112: Warren, Jr. | J112: 7502 Justice Drive | K112: Gloucester | L112: VA | M112: 23061 | N112: 8046931371 | O112: 8046931122 | P112: www.gloucester.info/sheriff | Q112: 229000
A113: Goochland County Sheriff`s Office | B113: Sheriff's Office | C113: 509562 | D113: Goochland County | E113: Screasey@goochlandva.us | F113: Sheriff | G113: Steven | H113: N | I113: Creasey | J113: P.O. Box 29 | K113: Goochland | L113: VA | M113: 23063 | N113: 8045565349 | O113: 8045565349 | P113: www.goochlandsheriff.com | Q113: 75000
A114: Gordonsville Police Department | B114: Police Dept. | C114: 509072 | D114: Gordonsville Town | E114: garrington@gordonsville.org | F114: Chief | G114: Glen | H114: D | I114: Arrington, Jr. | J114: P.O. Box 276, 112 S. Main Street | K114: Gordonsville | L114: VA | M114: 22942 | N114: 5408322234 | O114: 5408325568 | P114: www.townofgordonsville.org | Q114: 91000
A115: Grayson County Sheriff's Office | B115: Sheriff's Office | C115: 509275 | D115: Grayson County | E115: rvaughan@graysoncountyva.gov | F115: Sheriff | G115: Richard | H115: A | I115: Vaughan | J115: P.O. Box 160 | K115: Independence | L115: VA | M115: 24348 | N115: 2767733241 | O115: 2767732586 | P115: www.graysoncountysheriff.com | Q115: 264000
A116: Greene County Sheriff's Office | B116: Sheriff's Office | C116: 509773 | D116: Greene County | E116: ssmith@gcvasheriff.us | F116: Sheriff | G116: Steven | H116: S | I116: Smith | J116: 10005 Spotswood Trail | K116: Stanardsville | L116: VA | M116: 22973 | N116: 4349852222 | O116: 4349853373 | P116: www.greenecountysheriffva.com | Q116: 211000
A117: Greensville County Sheriff`s Office | B117: Sheriff's Office | C117: 510243 | D117: Greensville County | E117: tjarratt.gcso@greensvillecountyva.gov | F117: Sheriff | G117: William | H117: T | I117: Jarrett, Jr. | J117: 174 Uriah Branch Way | K117: Emporia | L117: VA | M117: 23847 | N117: 4343484200 | O117: 4343361111 | Q117: 261000
A118: Gretna Police Department | B118: Police Dept. | C118: 509996 | D118: Gretna Town | E118: gretna.police@townofgretna.org | F118: Chief | G118: David | I118: Wilkes | J118: 105 South Shelton St., P.O. Box 602 | K118: Gretna | L118: VA | M118: 24557 | N118: 4346566123 | O118: 4346569379 | Q118: 301000
A119: Grottoes Police Department | B119: Police Dept. | C119: 509007 | D119: Grottoes Town | E119: jsullivan@ci.grottoes.va.us | F119: Interim Chief | G119: Jason | H119: B | I119: Sullivan | J119: P.O. Box 146, 601 Dogwood Ave. | K119: Grottoes | L119: VA | M119: 24441 | N119: 5402495707 | O119: 5402493547 | P119: www.ci.grottoes.va.us | Q119: 53000
A120: Grundy Police Department | B120: Police Dept. | C120: 510419 | D120: Grundy Town | E120: seth@grundyvirginia.com | F120: Chief | G120: Jerome | H120: S | I120: Mcglothlin | J120: 1185 Plaza Drive | K120: Grundy | L120: VA | M120: 24614 | N120: 2769351993 | O120: 2769352468 | P120: - | Q120: 10000
A121: Halifax County Sheriff's Office | B121: Sheriff's Office | C121: 509463 | D121: Halifax County | E121: fsclark@co.halifax.va.us | F121: Sheriff | G121: Fred | I121: Clark | J121: P.O. Box 370 | K121: Halifax | L121: VA | M121: 24558 | N121: 4344763334 | O121: 4344767095 | P121: hcso@hcso.us.com | Q121: 335000
A122: Halifax Police Department | B122: Police Dept. | C122: 509777 | D122: Halifax Town | E122: policechief@townofhalifax.com | F122: Chief | G122: Stuart | H122: M | I122: Comer | J122: PO. Box 627 | K122: Halifax | L122: VA | M122: 24558 | N122: 4344762526 | O122: 4344766344 | Q122: 151000
A123: Hampden - Sydney College Police | B123: Higher Ed. | C123: 509229 | D123: Hampden - Sydney College Police | E123: mfowler@hsc.edu | Q123: 48000
A124: Hampton Roads Regional Jail | B124: Regional Jail | C124: 509344 | D124: Hampton Roads Regional Jail | E124: vergakisj@hr.rj.virginia.gov | Q124: 173500
A125: Hampton University Police Dept. | B125: Higher Ed. | C125: 510506 | D125: Hampton University Police Dept. | E125: davide.glover@hamptonu.edu | Q125: 48000
A126: Hanover County Sheriff's Office | B126: Sheriff's Office | C126: 509340 | D126: Hanover County | E126: drhines@hanovercounty.gov | F126: Colonel | G126: David | H126: R | I126: Hines | J126: 7522 County Complex Rd., P. O. Box 40 | K126: Hanover | L126: VA | M126: 23069 | N126: 8043656110 | O126: 8043656390 | P126: www.hanoversheriff.com | Q126: 252000
A127: Harrisonburg Police Department | B127: Police Dept. | C127: 509205 | D127: Harrisonburg City | E127: kelley.warner@harrisonburgva.gov | F127: Chief | G127: Kelley | I127: Warner | J127: 101 N. Main Street | K127: Harrisonburg | L127: VA | M127: 22802 | N127: 5404372600 | O127: 5404372614 | P127: www.harrisonburgva.gov/police | Q127: 302000
A128: Haymarket Police Department | B128: Police Dept. | C128: 509929 | D128: Haymarket Town | E128: asibert@townofhaymarket.org | F128: Chief | G128: Edgar | H128: A | I128: Sibert | J128: 15000 Washington St, Suite 110 | K128: Haymarket | L128: VA | M128: 20169 | N128: 7037532700 | O128: 7037531954 | P128: www.townofhaymarket.org | Q128: 12000
A129: Haysi Police Department | B129: Police Dept. | C129: 510170 | D129: Haysi Town | E129: haysipolicedept@dcwin.org | F129: Interim Chief | G129: James | I129: Standley | J129: P.O. Box 278 | K129: Haysi | L129: VA | M129: 24256 | N129: 2768657101 | O129: 2768659808 | P129: - | Q129: 10000
A130: Arlington County Police Department | B130: Police Dept. | C130: 509601 | D130: Arlington County | E130: cpenn@arlingtonva.us | F130: Chief | G130: Charles "andy" | H130: A | I130: Penn | J130: 1425 N. Courthouse Rd. | K130: Arlington | L130: VA | M130: 22201 | N130: 7032283140 | O130: 7032284127 | P130: police.arlingtonva.us | Q130: 389000
A131: Henry County Sheriff's Office | B131: Sheriff's Office | C131: 510180 | D131: Henry County | E131: lperry@co.henry.va.us | F131: Sheriff | G131: Lane | H131: A | I131: Perry | J131: 3250 Kings Mountain Road | K131: Martinsville | L131: VA | M131: 241123960 | N131: 2766564200 | O131: 2766564229 | Q131: 361000
A132: Herndon Police Department | B132: Police Dept. | C132: 509068 | D132: Herndon Town | E132: maggie.deboard@herndon-va.gov | F132: Chief | G132: Maggie | H132: A | I132: Deboard | J132: 397 Herndon Pkwy | K132: Herndon | L132: VA | M132: 20170 | N132: 7034356885 | O132: 7034354516 | P132: - | Q132: 135000
A133: Highland County Sheriff's Office | B133: Sheriff's Office | C133: 509750 | D133: Highland County | E133: hcso@htcnet.org | F133: Sheriff | G133: David | H133: A | I133: Neil | J133: P O Box 485 | K133: Monterey | L133: VA | M133: 24465 | N133: 5404682210 | O133: 5404683040 | Q133: 112000
A134: Hillsville Police Department | B134: Police Dept. | C134: 509357 | D134: Hillsville Town | E134: shannon.goad@hillsvillepd.org | F134: Chief | G134: Shannon | H134: D | I134: Goad | J134: P.O. Box 1835 | K134: Hillsville | L134: VA | M134: 24343 | N134: 2767282251 | O134: 2767280649 | Q134: 153000
A135: Honaker Police Department | B135: Police Dept. | C135: 510179 | D135: Honaker Town | E135: chiefcassell@honakerpd.com | F135: Chief | G135: Brandon | H135: J | I135: Cassell | J135: P.O. Box 746 | K135: Honaker | L135: VA | M135: 24260 | N135: 2768735297 | O135: 2769919217 | Q135: 10000
A136: Hopewell Police Department | B136: Police Dept. | C136: 509290 | D136: Hopewell City | E136: astarke@hopewellva.gov | F136: Interim Chief | G136: Antonio | H136: J | I136: Starke | J136: 150 W. Randolph Rd. | K136: Hopewell | L136: VA | M136: 23860 | N136: 8045412282 | O136: 8045412206 | P136: www.hopewellva.gov | Q136: 633000
A137: Hurt Police Department | B137: Police Dept. | C137: 509130 | D137: Hurt Town | E137: michael.lovelace@townofhurtva.gov | F137: Chief Of Police | G137: Michael | I137: Lovelace | J137: P.O. Box 760, 533 Pocket Rd | K137: Hurt | L137: VA | M137: 24563 | N137: 4346080554 | O137: 4346080554 | P137: michael.jones@townofhurtva.gov | Q137: 10000
A138: Independence Police Department | B138: Police Dept. | C138: 510383 | D138: Independence Town | E138: matthew@independenceva.com | F138: Interim Chief | G138: Matthew | H138: B | I138: Adams | J138: P.O. Box 99, 136 East Main Street | K138: Independence | L138: VA | M138: 24348 | N138: 2767733661 | O138: 2767730492 | P138: Independenceva.com | Q138: 10000
A139: Isle Of Wight County Sheriff`s Office | B139: Sheriff's Office | C139: 510036 | D139: Isle of Wight County | E139: jclarke@isleofwightus.net | F139: Sheriff | G139: James | H139: R | I139: Clarke | J139: 17110 Monument Circle, Suite C, P. O. Box 75 | K139: Isle Of Wight | L139: VA | M139: 23397 | N139: 7573572151 | P139: www.isleofwightsheriffsoffice.com/ | Q139: 178000
A140: J. Sargeant Reynolds Community College Pd | B140: Higher Ed. | C140: 510295 | D140: J. Sargeant Reynolds Community College Pd | E140: jward@reynolds.edu | Q140: 42000
A141: James City County Police Department | B141: Police Dept. | C141: 510087 | D141: James City County | E141: tony.dallman@jamescitycountyva.gov | F141: Assistant Chief | G141: Anthony | H141: G | I141: Dallman | J141: P.O. Box 8784 | K141: Williamsburg | L141: VA | M141: 231878784 | N141: 7572595145 | O141: 7572298729 | P141: www.jamescitycountyva.gov/police | Q141: 228000
A142: James Madison University Police Department | B142: Higher Ed. | C142: 509561 | D142: James Madison University Police Department | E142: matosad@jmu.edu | Q142: 126000
A143: Jonesville Police Department | B143: Police Dept. | C143: 510537 | D143: Jonesville Town | E143: chief@townofjonesville.org | F143: Acting Chief | G143: Christopher | H143: D | I143: Lewis | J143: 842 Park Street | K143: Jonesville | L143: VA | M143: 24263 | N143: 2763461151 | O143: 2763461325 | P143: www.townofjonesville.org | Q143: 10000
A144: Kenbridge Police Department | B144: Police Dept. | C144: 510533 | D144: Kenbridge Town | E144: chriswallace@kenbridgeva.net | F144: Chief | G144: Chris | I144: Wallace | J144: P.O. Box 478 | K144: Kenbridge | L144: VA | M144: 23944 | N144: 4346762453 | O144: 4346768068 | P144: info@kenbridgeva.net | Q144: 151000
A145: Kilmarnock Police Department | B145: Police Dept. | C145: 510385 | D145: Kilmarnock Town | E145: cdawson@kilmarnockva.com | F145: Chief | G145: Clifford | H145: R | I145: Dawson, Sr. | J145: P. O. Box 1357 | K145: Kilmarnock | L145: VA | M145: 22482 | N145: 8044351200 | O145: 8044351482 | Q145: 111000
A146: King & Queen County Sheriff`s Office | B146: Sheriff's Office | C146: 509084 | D146: King & Queen County | E146: chief@kqso.net | F146: Sheriff | G146: John | H146: R | I146: Charboneau | J146: 242 Allen`s Circle, Suite A, PO Box 38 | K146: King & Queen Courthouse | L146: VA | M146: 23085 | N146: 8047857400 | O146: 8047855489 | Q146: 317000
A147: King George County Sheriff`s Office | B147: Sheriff's Office | C147: 510669 | D147: King George County | E147: cgiles@co.kinggeorge.state.va.us | F147: Sheriff | G147: Chris | H147: A | I147: Giles | J147: 10445 Government Center Blvd | K147: King George | L147: VA | M147: 22485 | N147: 5407752049 | O147: 5407754874 | P147: king-george.va.us | Q147: 177000
A148: King William County Sheriff`s Office | B148: Sheriff's Office | C148: 510149 | D148: King William County | E148: kwso@kingwilliamcounty.us | F148: Sheriff | G148: J "Jeff" | H148: S | I148: Walton | J148: 351 Courthouse Lane, Suite 160 | K148: King William | L148: VA | M148: 23086 | N148: 8047690999 | O148: 8047690334 | P148: kingwilliamcounty.us/departments-and-services/sheriffs-office/ | Q148: 204000
A149: La Crosse Police Department | B149: Police Dept. | C149: UNSUBMITTED | D149: La Crosse Town | E149: dcbrown@laxvapd.com | F149: Chief | G149: David | H149: C | I149: Brown | J149: P.O. Box 178 | K149: Lacrosse | L149: VA | M149: 23950 | N149: 4349171282 | O149: 4347571228 | P149: www.lacrossepolicedepartment.org | Q149: 10000
A150: Lancaster County Sheriff`s Office | B150: Sheriff's Office | C150: 509954 | D150: Lancaster County | E150: mccranie@lancastersheriff.net | F150: Sheriff | G150: Patrick | I150: McCranie | J150: 8293 Mary Ball Road | K150: Lancaster | L150: VA | M150: 22503 | N150: 8044625111 | O150: 8044627046 | P150: www.lancastersheriff.net | Q150: 199000
A151: Laurel Ridge Community College Police Department | B151: Higher Ed. | C151: 510121 | D151: Laurel Ridge Community College Police Department | E151: bcoor@lfcc.edu | F151: Chief of Police | G151: Bruce | I151: Coor | N151: 5408687050 | P151: https://laurelridge.edu/employee-directory/bruce-coor/ | Q151: 48000
A152: Lawrenceville Police Department | B152: Police Dept. | C152: 510592 | D152: Lawrenceville Town | E152: stith@lawrencevillepolice.org | F152: Chief | G152: John | I152: Stith | J152: 400 N. Main St. | K152: Lawrenceville | L152: VA | M152: 23868 | N152: 4348482020 | O152: 4348489356 | P152: www.lawrencevillepolice.org | Q152: 261000
A153: Lebanon Police Department | B153: Police Dept. | C153: 509552 | D153: Lebanon Town | E153: deskins@lebanonpd.us | F153: Chief | G153: Richard | H153: E | I153: Deskins | J153: P.O. Drawer 309 | K153: Lebanon | L153: VA | M153: 24266 | N153: 2768897228 | O153: 2768894728 | Q153: 153000
A154: Lee County Sheriff's Office | B154: Sheriff's Office | C154: 509983 | D154: Lee County | E154: sheriffsoffice@leecountysheriff.net | F154: Sheriff | G154: Gary | H154: B | I154: Parsons | J154: P.O. Box 177 | K154: Jonesville | L154: VA | M154: 24263 | N154: 2763467753 | O154: 2763467706 | P154: www.leecountysheriff.net | Q154: 480000
A155: Leesburg Police Department | B155: Police Dept. | C155: 509676 | D155: Leesburg Town | E155: vgrigsby@leesburgva.gov | F155: Deputy Chief | G155: Vanessa | I155: Grigsby | J155: 65 Plaza Street, NE | K155: Leesburg | L155: VA | M155: 20176 | N155: 7037714505 | O155: 7037714580 | P155: www.leesburgva.gov | Q155: 158000
A156: Lexington Police Department | B156: Police Dept. | C156: 509450 | D156: Lexington City | E156: lexpolice@lexingtonva.gov | F156: Chief | G156: Angela | H156: M | I156: Greene | J156: 11 Fuller Street | K156: Lexington | L156: VA | M156: 24450 | N156: 5404623749 | O156: 5404639257 | P156: lexingtonva.gov/173/police | Q156: 157000
A157: Liberty University Police Department | B157: Higher Ed. | C157: 510794 | D157: Liberty University Police Department | E157: lupd@liberty.edu | G157: Registrar's office - 4345925100 (Luke) | N157: 4345923637 | P157: https://www.liberty.edu/police/ | Q157: 108000
A158: Longwood University Police Department | B158: Higher Ed. | C158: 509324 | D158: Longwood University Police Department | E158: rayboldrs@longwood.edu | Q158: 54000
A159: Loudoun County Sheriff's Office | B159: Sheriff's Office | C159: 509957 | D159: Loudoun County | E159: Mike.Chapman@loudoun.gov | F159: Sheriff | G159: Michael | H159: L | I159: Chapman | J159: 803 Sycolin Road SE | K159: Leesburg | L159: VA | M159: 20175 | N159: 7037770407 | O159: 7037715744 | P159: loudoun.gov/sheriff | Q159: 473000
A160: Louisa County Sheriff's Office | B160: Sheriff's Office | C160: 510232 | D160: Louisa County | E160: dlowe@louisa.org | F160: Sheriff | G160: Donald | H160: A | I160: Lowe | J160: 1 Woolfolk Ave, STE 101 | K160: Louisa | L160: VA | M160: 23093 | N160: 5409671234 | O160: 5409671916 | P160: www.louisacounty.com/LCSheriff/ | Q160: 226000
A161: Louisa Police Department | B161: Police Dept. | C161: 510289 | D161: Louisa Town | E161: cbuckley@louisatown.org | F161: Chief | G161: Craig | H161: M | I161: Buckley | J161: 219 East Main Street | K161: Louisa | L161: VA | M161: 23093 | N161: 5409673011 | O161: 5409673266 | P161: police.louisatown.org | Q161: 112000
A162: Lunenburg County Sheriff`s Office | B162: Sheriff's Office | C162: 509143 | D162: Lunenburg County | E162: sheriff@lunenburgva.net | F162: Sheriff | G162: Arthur | I162: Townsend, Jr. | J162: 160 Courthouse Square | K162: Lunenburg | L162: VA | M162: 23952 | N162: 4346964452 | O162: 4346962531 | P162: www.lunenburgva.net | Q162: 259000
A163: Luray Police Department | B163: Police Dept. | C163: 509219 | D163: Luray Town | E163: bowcook@townofluray.com | F163: Chief | G163: Carl | H163: S | I163: Cook | J163: 45 East Main Street | K163: Luray | L163: VA | M163: 22835 | N163: 5407435343 | O163: 5407437334 | P163: www.townofluray.com | Q163: 155000
A164: Madison County Sheriff's Office | B164: Sheriff's Office | C164: 510780 | D164: Madison County | E164: eweaver@madisonco.virginia.gov | F164: Sheriff | G164: Erik | H164: J | I164: Weaver | J164: P.O. Box 322, 115 Church Street | K164: Madison | L164: VA | M164: 22727 | N164: 5409485161 | O164: 5409483069 | Q164: 164000
A165: Manassas City Police Department | B165: Police Dept. | C165: 510198 | D165: Manassas City | E165: dkeen@ci.manassas.va.us | F165: Chief | G165: Douglas | H165: W | I165: Keen | J165: 9518 Fairview Ave. | K165: Manassas | L165: VA | M165: 20110 | N165: 7032578001 | O165: 7033686966 | P165: www.manassascity.org | Q165: 193000
A166: Manassas Park City Police Dept. | B166: Police Dept. | C166: 510464 | D166: Manassas Park City | E166: m.lugo@manassasparkva.gov | F166: Chief | G166: Mario | I166: Lugo | J166: 329 Manassas Dr. | K166: Manassas Park | L166: VA | M166: 20111 | N166: 7033611136 | O166: 7033351683 | P166: manassasparkpolice.com/ | Q166: 167000
A167: Marion Police Department | B167: Police Dept. | C167: 509057 | D167: Marion Town | E167: jclair@marionva.org | F167: Chief | G167: John | I167: Clair | J167: 555 South Main Street | K167: Marion | L167: VA | M167: 24354 | N167: 2767838145 | O167: 2767834001 | P167: www.marionpd.net | Q167: 216000
A168: Martinsville Police Department | B168: Police Dept. | C168: 510465 | D168: Martinsville City | E168: ecassady@ci.martinsville.va.us | F168: Chief | G168: Guy | H168: E | I168: Cassady | J168: 55 W. Church St., P.O. Box 1101 | K168: Martinsville | L168: VA | M168: 24112 | N168: 2764035310 | O168: 2764035311 | P168: www.ci.martinsville.va.us/police | Q168: 23000
A169: Mathews County Sheriff's Office | B169: Sheriff's Office | C169: 508954 | D169: Mathews County | E169: sheriffbarrick@mathewscountyva.gov | F169: Sheriff | G169: L. Mark | I169: Barrick | J169: P.O. Box 190, 10622 Buckley Hall Road | K169: Mathews | L169: VA | M169: 23109 | N169: 8047257177 | O169: 8047255982 | P169: www.co.mathews.va.us | Q169: 139000
A170: McKenney Police Department | B170: Police Dept. | C170: 510798 | D170: McKenney Town | E170: townofmckenney@gmail.com | F170: Town Sergeant | G170: John | I170: Howerton | J170: P.O. Box 309 | K170: Mckenney | L170: VA | M170: 23872 | N170: 8044784621 | O170: 8044784121 | Q170: 10000
A171: Mecklenburg County Sheriff`s Office | B171: Sheriff's Office | C171: 509054 | D171: Mecklenburg County | E171: bobby.hawkins@mcsova.us | F171: Sheriff | G171: Robert | H171: W | I171: Hawkins, Jr. | J171: P.O. Box 390, 911 Madison St | K171: Boydton | L171: VA | M171: 23917 | N171: 4347386171 | O171: 4347386449 | P171: www.mcsova.us | Q171: 331000
A172: Meherrin River Regional Jail | B172: Regional Jail | C172: 510583 | D172: Meherrin River Regional Jail | E172: cwillett@mrrj.org | Q172: 94000
A173: Middle Peninsula Regional Security Center | B173: Regional Jail | C173: 509779 | D173: Middle Peninsula Regional Security Center | E173: tdoss@mprsc.org | Q173: 104500
A174: Middle River Regional Jail | B174: Regional Jail | C174: 509363 | D174: Middle River Regional Jail | E174: eyoung@mrrjva.gov | Q174: 169000
A175: Middleburg Police Department | B175: Police Dept. | C175: 510470 | D175: Middleburg Town | E175: chiefaj@middleburgva.gov | F175: Chief | G175: Anthony "aj" | H175: J | I175: Panebianco | J175: P.O. Box 187, 107 Federal Street | K175: Middleburg | L175: VA | M175: 20118 | N175: 5406876636 | O175: 5406874064 | Q175: 10000
A176: Middlesex County Sheriff`s Office | B176: Sheriff's Office | C176: 509478 | D176: Middlesex County | E176: d.tate@co.middlesex.va.us | F176: Sheriff | G176: David | H176: P | I176: Bushey | J176: P.O. Box 207 | K176: Saluda | L176: VA | M176: 23149 | N176: 8047581335 | O176: 8047580023 | Q176: 201000
A177: Middletown Police Department | B177: Police Dept. | C177: 509604 | D177: Middletown Town | E177: chief@middletownva.gov | F177: Chief | G177: Gary | H177: W | I177: Benedict, Jr. | J177: 7735 Main Street | K177: Middletown | L177: VA | M177: 22645 | N177: 5408680535 | O177: 5408695094 | Q177: 51000
A178: Montgomery County Sheriff`s Office | B178: Sheriff's Office | C178: 509458 | D178: Montgomery County | E178: partinch@vamcso.org | F178: Sheriff | G178: Charles H "hank" | I178: Partin | J178: 1 East Main Street | K178: Christiansburg | L178: VA | M178: 24073 | N178: 5403826915 | O178: 5403816898 | P178: www.montgomerycountyva.gov/content/15987/16013/default.aspx | Q178: 342000
A179: Mountain Empire Community College Campus Pd | B179: Higher Ed. | C179: 510347 | D179: Mountain Empire Community College Campus Pd | E179: gcothron@mecc.edu | Q179: 21000
A180: Mount Jackson Police Department | B180: Police Dept. | C180: 509606 | D180: Mt. Jackson Town | E180: mjpdchief@mountjackson.com | F180: Chief | G180: James | I180: Cowart | J180: P.O. Box 487 | K180: Mount Jackson | L180: VA | M180: 22842 | N180: 5404772242 | O180: 5404772302 | P180: unk | Q180: 212000
A181: Narrows Police Department | B181: Police Dept. | C181: REF GILES COUNTY | D181: Narrows Town | E181: bratcliffe@townofnarrows.org | F181: Chief | G181: Bentley | H181: O | I181: Ratcliffe | J181: 100 Mary Street | K181: Narrows | L181: VA | M181: 24124 | N181: 5407267985 | O181: 5407267566 | Q181: 152000
A182: Nelson County Sheriff's Office | B182: Sheriff's Office | C182: 509820 | D182: Nelson County | E182: dhill@nelsoncounty.org | F182: Sheriff | G182: David | H182: W | I182: Hill | J182: P.O. Box 36 | K182: Lovingston | L182: VA | M182: 22949 | N182: 4342637050 | O182: 4342637056 | Q182: 265000
A183: New Kent County Sheriff's Office | B183: Sheriff's Office | C183: 509599 | D183: New Kent County | E183: jjmclaughlinjr@newkent-va.us | F183: Sheriff | G183: John | H183: J | I183: Mclaughlin, Jr. | J183: P.O. Box 186 | K183: New Kent | L183: VA | M183: 231240186 | N183: 8049669500 | O183: 8049665050 | P183: www.co.new-kent.va.us/index.aspx?NID=334 | Q183: 133000
A184: New Market Police Department | B184: Police Dept. | C184: 509318 | D184: New Market Town | E184: c.rinker@newmarketvirginia.com | F184: Acting Chief | G184: Christopher | H184: D | I184: Rinker | J184: 9418 John Sevier Rd., P.O. Box 58 | K184: New Market | L184: VA | M184: 22844 | N184: 5407403776 | O184: 5407409204 | Q184: 92000
A185: New River Valley Regional Jail | B185: Regional Jail | C185: 509313 | D185: New River Valley Regional Jail | E185: kdhaug@nrvrj.org | Q185: 200500
A186: Newport News Police Department | B186: Police Dept. | C186: 510234 | D186: Newport News City | E186: drewsr@nnva.gov | F186: Chief | G186: Steven | I186: Drew | J186: 9710 Jefferson Avenue | K186: Newport News | L186: VA | M186: 23605 | N186: 7579284300 | O186: 7579284602 | P186: www.newport-news.va.us/police | Q186: 46000
A187: Norfolk State University Police Department | B187: Higher Ed. | C187: 510421 | D187: Norfolk State University Police Department | E187: mwills@nsu.edu | Q187: 78000
A188: Northern Neck Regional Jail | B188: Regional Jail | C188: 510810 | D188: Northern Neck Regional Jail | E188: ted@nnrj.state.va.us | Q188: 82000
A189: Northern Va Community College Pd | B189: Higher Ed. | C189: UNSUBMITTED | D189: Northern Va Community College Pd | E189: wjjacoby@nvcc.edu | Q189: 132000
A190: Northampton County Sheriff`s Office | B190: Sheriff's Office | C190: 509995 | D190: Northampton County | E190: sheriff@co.northampton.va.us | F190: Sheriff | G190: David | H190: L | I190: Doughty, Jr. | J190: P.O. Box 68, 5211 The Hornes | K190: Eastville | L190: VA | M190: 23347 | N190: 7576780460 | O190: 7576780494 | P190: www.co.northampton.va.us | Q190: 219000
A191: Northwestern Regional Adult Detention Center | B191: Regional Jail | C191: 509718 | D191: Northwestern Regional Adult Detention Center | E191: ccorbin@fcva.us | Q191: 205000
A192: Northumberland County Sheriff`s Office | B192: Sheriff's Office | C192: 510177 | D192: Northumberland County | E192: jbeauchamp@northumberlandsheriff.net | F192: Sheriff | G192: John | H192: A | I192: Beauchamp | J192: P O Box 310 | K192: Heathsville | L192: VA | M192: 22473 | N192: 8045805221 | O192: 8045805723 | P192: www.northumberlandsheriff.net | Q192: 262000
A193: Norton Police Department | B193: Police Dept. | C193: 509491 | D193: Norton City | E193: jamesl@nortonva.org | F193: Chief | G193: James | H193: C | I193: Lane | J193: P.O. Box 618 | K193: Norton | L193: VA | M193: 24273 | N193: 2766791211 | O193: 2766792306 | P193: www.nortonva.org | Q193: 364000
A194: Nottoway County Sheriff's Office | B194: Sheriff's Office | C194: 508968 | D194: Nottoway County | E194: rjones@nottowaysheriff.org | F194: Sheriff | G194: Robert | H194: L | I194: Jones, Sr. | J194: P.O. Box 6 | K194: Nottoway | L194: VA | M194: 23955 | N194: 4346459044 | O194: 4346459044 | P194: nottowaysheriff.org | Q194: 260000
A195: Occoquan Police Department | B195: Police Dept. | C195: 510229 | D195: Occoquan Town | E195: alinn@occoquanva.gov | F195: Chief | G195: Adam | H195: C | I195: Linn | J195: P O Box 195, 314 Mill Street | K195: Occoquan | L195: VA | M195: 22125 | N195: 7034911918 | O195: 7034914962 | P195: www.occoquanva.gov | Q195: 11000
A196: Onancock Police Department | B196: Police Dept. | C196: 510366 | D196: Onancock Town | E196: onancockpd@yahoo.com | F196: Chief | G196: Eric | I196: Williams | J196: Municipal Bldg., 15 North Street | K196: Onancock | L196: VA | M196: 23417 | N196: 7577878577 | O196: 7577873309 | Q196: 211000
A197: Onley Police Department | B197: Police Dept. | C197: 510113 | D197: Onley Town | E197: ejlong@townofonley.org | F197: Chief | G197: Edwin | H197: J | I197: Long | J197: 25559 East Main St., P.O. Box 622 | K197: Onley | L197: VA | M197: 23418 | N197: 7577873985 | O197: 7577875661 | P197: townofonley.org | Q197: 10000
A198: Orange County Sheriff's Office | B198: Sheriff's Office | C198: 510593 | D198: Orange County | E198: mamos@orangecountyva.gov | F198: Sheriff | G198: Mark | H198: A | I198: Amos | J198: 11282 Government Center Drive | K198: Orange | L198: VA | M198: 22960 | N198: 5406721200 | O198: 5406729435 | P198: - | Q198: 220000
A199: Orange Police Department | B199: Police Dept. | C199: 509930 | D199: Orange Town | E199: kmadison@townoforangeva.org | F199: Chief | G199: Kiline | H199: D | I199: Madison | J199: 249 Blue Ridge Drive | K199: Orange | L199: VA | M199: 22960 | N199: 5406721491 | O199: 5406720162 | P199: unk | Q199: 155000
A200: Page County Sheriff's Office | B200: Sheriff's Office | C200: 509376 | D200: Page County | E200: ccubbage@pagesheriff.com | F200: Sheriff | G200: Chad | H200: W | I200: Cubbage | J200: 108 S. Court St. | K200: Luray | L200: VA | M200: 22835 | N200: 5407436571 | O200: 5407431252 | P200: www.pagesheriff.com | Q200: 415000
... 110 more rows
